{"text_format":"1","workbook":"xlsx","n_sheets":24,"sheets":["Risk","Crop","Log_TPL","Pests","Lists","Costs","Logos","Pest_Report","WGRCG","WGRGG","WABCL","WABMG","WABPA","WABPS","WABP","WABSP","WPYN","DBR","PSRFR","PSRRSR","PSRS","SPN","ISW","IW"],"not_rendered":{"charts":3,"images":4,"macros":1,"external_links":0,"defined_names":193,"comments":0,"pivot_tables":0},"unopened":[],"bounds":{"document_bytes":16777216,"sheet_cells":100000,"rows_first":2000,"rows_last":500,"rows_between":2000,"halvings":0,"cell_chars":16384,"cell_head_chars":4096},"cells_cut":0,"cells_raw":0,"read":"whole","date_system":"1900"}

{"sheet":"Risk","index":0,"n_rows":45,"n_cols":21,"rows_kept":45,"cut":false,"hidden":false,"merged":[[4,6,4,7],[4,9,4,12],[4,13,4,16],[4,17,4,20],[1,5,1,6],[2,6,2,7],[2,9,2,12],[2,13,2,16],[2,17,2,20],[7,6,7,7],[7,9,7,12],[7,13,7,16],[7,17,7,20],[13,6,13,7],[13,9,13,12],[13,13,13,16],[13,17,13,20],[11,6,11,7],[11,9,11,12],[11,13,11,16],[11,17,11,20],[26,6,28,20],[20,6,20,7],[20,9,20,12],[20,13,20,16],[20,17,20,20],[23,6,23,7],[23,9,23,12],[23,13,23,16],[23,17,23,20]]}
[]
[]
[null,null,null,"Crop Practices",null,null,"Diseases",null,"Index","Low",null,null,null,"Med",null,null,null,"High"]
[null,null,null,"Certified Slips","No",null,null,"Black Rot",{"$f":"DBR_RiskIndex","v":90},{"$f":"DBR_RiskIndex","v":90},{"$f":"DBR_RiskIndex","v":90},{"$f":"DBR_RiskIndex","v":90},{"$f":"DBR_RiskIndex","v":90},{"$f":"DBR_RiskIndex","v":90},{"$f":"DBR_RiskIndex","v":90},{"$f":"DBR_RiskIndex","v":90},{"$f":"DBR_RiskIndex","v":90},{"$f":"DBR_RiskIndex","v":90},{"$f":"DBR_RiskIndex","v":90},{"$f":"DBR_RiskIndex","v":90},{"$f":"DBR_RiskIndex","v":90}]
[null,null,null,"Plant Spacing","12 inches",null,"Insects",null,"Index","Low",null,null,null,"Med",null,null,null,"High"]
[null,null,null,"Rotation Period","Continuous",null,null,"Sweetpotato Weevil",{"$f":"ISW_RiskIndex","v":65},{"$f":"ISW_RiskIndex","v":65},{"$f":"ISW_RiskIndex","v":65},{"$f":"ISW_RiskIndex","v":65},{"$f":"ISW_RiskIndex","v":65},{"$f":"ISW_RiskIndex","v":65},{"$f":"ISW_RiskIndex","v":65},{"$f":"ISW_RiskIndex","v":65},{"$f":"ISW_RiskIndex","v":65},{"$f":"ISW_RiskIndex","v":65},{"$f":"ISW_RiskIndex","v":65},{"$f":"ISW_RiskIndex","v":65},{"$f":"ISW_RiskIndex","v":65}]
[null,null,null,"Row Spacing","42 or 44 inches",null,null,"Wireworm",{"$f":"IW_RiskIndex","v":50},{"$f":"IW_RiskIndex","v":50},{"$f":"IW_RiskIndex","v":50},{"$f":"IW_RiskIndex","v":50},{"$f":"IW_RiskIndex","v":50},{"$f":"IW_RiskIndex","v":50},{"$f":"IW_RiskIndex","v":50},{"$f":"IW_RiskIndex","v":50},{"$f":"IW_RiskIndex","v":50},{"$f":"IW_RiskIndex","v":50},{"$f":"IW_RiskIndex","v":50},{"$f":"IW_RiskIndex","v":50},{"$f":"IW_RiskIndex","v":50}]
[null,null,null,"Transplants","Not clean with soil",null,"Postharvest Storage Rots",null,"Index","Low",null,null,null,"Med",null,null,null,"High"]
[null,null,null,"Cultivar",null,null,null,"Fusarium Rot",{"$f":"PSRFR_RiskIndex","v":55},{"$f":"PSRFR_RiskIndex","v":55},{"$f":"PSRFR_RiskIndex","v":55},{"$f":"PSRFR_RiskIndex","v":55},{"$f":"PSRFR_RiskIndex","v":55},{"$f":"PSRFR_RiskIndex","v":55},{"$f":"PSRFR_RiskIndex","v":55},{"$f":"PSRFR_RiskIndex","v":55},{"$f":"PSRFR_RiskIndex","v":55},{"$f":"PSRFR_RiskIndex","v":55},{"$f":"PSRFR_RiskIndex","v":55},{"$f":"PSRFR_RiskIndex","v":55},{"$f":"PSRFR_RiskIndex","v":55}]
[null,null,null,"Fusarium Rot Resistance","No",null,null,"Rhizopus Soft Rot",{"$f":"PSRRSR_RiskIndex","v":50},{"$f":"PSRRSR_RiskIndex","v":50},{"$f":"PSRRSR_RiskIndex","v":50},{"$f":"PSRRSR_RiskIndex","v":50},{"$f":"PSRRSR_RiskIndex","v":50},{"$f":"PSRRSR_RiskIndex","v":50},{"$f":"PSRRSR_RiskIndex","v":50},{"$f":"PSRRSR_RiskIndex","v":50},{"$f":"PSRRSR_RiskIndex","v":50},{"$f":"PSRRSR_RiskIndex","v":50},{"$f":"PSRRSR_RiskIndex","v":50},{"$f":"PSRRSR_RiskIndex","v":50},{"$f":"PSRRSR_RiskIndex","v":50}]
[null,null,null,"Nematode Resistance","No",null,null,"Scurf",{"$f":"PSRS_RiskIndex","v":35},{"$f":"PSRS_RiskIndex","v":35},{"$f":"PSRS_RiskIndex","v":35},{"$f":"PSRS_RiskIndex","v":35},{"$f":"PSRS_RiskIndex","v":35},{"$f":"PSRS_RiskIndex","v":35},{"$f":"PSRS_RiskIndex","v":35},{"$f":"PSRS_RiskIndex","v":35},{"$f":"PSRS_RiskIndex","v":35},{"$f":"PSRS_RiskIndex","v":35},{"$f":"PSRS_RiskIndex","v":35},{"$f":"PSRS_RiskIndex","v":35},{"$f":"PSRS_RiskIndex","v":35}]
[null,null,null,"Rhizopus Soft Rot Resistance","No",null,"Soil Pests",null,"Index","Low",null,null,null,"Med",null,null,null,"High"]
[null,null,null,"Equipment",null,null,null,"Nematodes",{"$f":"SPN_RiskIndex","v":65},{"$f":"SPN_RiskIndex","v":65},{"$f":"SPN_RiskIndex","v":65},{"$f":"SPN_RiskIndex","v":65},{"$f":"SPN_RiskIndex","v":65},{"$f":"SPN_RiskIndex","v":65},{"$f":"SPN_RiskIndex","v":65},{"$f":"SPN_RiskIndex","v":65},{"$f":"SPN_RiskIndex","v":65},{"$f":"SPN_RiskIndex","v":65},{"$f":"SPN_RiskIndex","v":65},{"$f":"SPN_RiskIndex","v":65},{"$f":"SPN_RiskIndex","v":65}]
[null,null,null,"Sanitation","No",null,"Weeds (Annual Broadleaves)",null,"Index","Low",null,null,null,"Med",null,null,null,"High"]
[null,null,null,"Field History",null,null,null,"Common Lambsquarters",{"$f":"WABCL_RiskIndex","v":95},{"$f":"WABCL_RiskIndex","v":95},{"$f":"WABCL_RiskIndex","v":95},{"$f":"WABCL_RiskIndex","v":95},{"$f":"WABCL_RiskIndex","v":95},{"$f":"WABCL_RiskIndex","v":95},{"$f":"WABCL_RiskIndex","v":95},{"$f":"WABCL_RiskIndex","v":95},{"$f":"WABCL_RiskIndex","v":95},{"$f":"WABCL_RiskIndex","v":95},{"$f":"WABCL_RiskIndex","v":95},{"$f":"WABCL_RiskIndex","v":95},{"$f":"WABCL_RiskIndex","v":95}]
[null,null,null,"Previous Crop","Other",null,null,"Morningglory",{"$f":"WABMG_RiskIndex","v":90},{"$f":"WABMG_RiskIndex","v":90},{"$f":"WABMG_RiskIndex","v":90},{"$f":"WABMG_RiskIndex","v":90},{"$f":"WABMG_RiskIndex","v":90},{"$f":"WABMG_RiskIndex","v":90},{"$f":"WABMG_RiskIndex","v":90},{"$f":"WABMG_RiskIndex","v":90},{"$f":"WABMG_RiskIndex","v":90},{"$f":"WABMG_RiskIndex","v":90},{"$f":"WABMG_RiskIndex","v":90},{"$f":"WABMG_RiskIndex","v":90},{"$f":"WABMG_RiskIndex","v":90}]
[null,null,null,"Harvest",null,null,null,"Palmer Amaranth",{"$f":"WABPA_RiskIndex","v":100},{"$f":"WABPA_RiskIndex","v":100},{"$f":"WABPA_RiskIndex","v":100},{"$f":"WABPA_RiskIndex","v":100},{"$f":"WABPA_RiskIndex","v":100},{"$f":"WABPA_RiskIndex","v":100},{"$f":"WABPA_RiskIndex","v":100},{"$f":"WABPA_RiskIndex","v":100},{"$f":"WABPA_RiskIndex","v":100},{"$f":"WABPA_RiskIndex","v":100},{"$f":"WABPA_RiskIndex","v":100},{"$f":"WABPA_RiskIndex","v":100},{"$f":"WABPA_RiskIndex","v":100}]
[null,null,null,"Curing and Storage","Delayed",null,null,"Pennsylvania Smartweed",{"$f":"WABPS_RiskIndex","v":95},{"$f":"WABPS_RiskIndex","v":95},{"$f":"WABPS_RiskIndex","v":95},{"$f":"WABPS_RiskIndex","v":95},{"$f":"WABPS_RiskIndex","v":95},{"$f":"WABPS_RiskIndex","v":95},{"$f":"WABPS_RiskIndex","v":95},{"$f":"WABPS_RiskIndex","v":95},{"$f":"WABPS_RiskIndex","v":95},{"$f":"WABPS_RiskIndex","v":95},{"$f":"WABPS_RiskIndex","v":95},{"$f":"WABPS_RiskIndex","v":95},{"$f":"WABPS_RiskIndex","v":95}]
[null,null,null,"Mechanical Damage","Often",null,null,"Purslane",{"$f":"WABP_RiskIndex","v":95},{"$f":"WABP_RiskIndex","v":95},{"$f":"WABP_RiskIndex","v":95},{"$f":"WABP_RiskIndex","v":95},{"$f":"WABP_RiskIndex","v":95},{"$f":"WABP_RiskIndex","v":95},{"$f":"WABP_RiskIndex","v":95},{"$f":"WABP_RiskIndex","v":95},{"$f":"WABP_RiskIndex","v":95},{"$f":"WABP_RiskIndex","v":95},{"$f":"WABP_RiskIndex","v":95},{"$f":"WABP_RiskIndex","v":95},{"$f":"WABP_RiskIndex","v":95}]
[null,null,null,"Moisture","Wet",null,null,"Smooth Pigweed",{"$f":"WABSP_RiskIndex","v":95},{"$f":"WABSP_RiskIndex","v":95},{"$f":"WABSP_RiskIndex","v":95},{"$f":"WABSP_RiskIndex","v":95},{"$f":"WABSP_RiskIndex","v":95},{"$f":"WABSP_RiskIndex","v":95},{"$f":"WABSP_RiskIndex","v":95},{"$f":"WABSP_RiskIndex","v":95},{"$f":"WABSP_RiskIndex","v":95},{"$f":"WABSP_RiskIndex","v":95},{"$f":"WABSP_RiskIndex","v":95},{"$f":"WABSP_RiskIndex","v":95},{"$f":"WABSP_RiskIndex","v":95}]
[null,null,null,"Pest History",null,null,"Weeds (Annual Grasses)",null,"Index","Low",null,null,null,"Med",null,null,null,"High"]
[null,null,null,"Black Rot","Within last 2 years",null,null,"Crabgrass",{"$f":"WGRCG_RiskIndex","v":90},{"$f":"WGRCG_RiskIndex","v":90},{"$f":"WGRCG_RiskIndex","v":90},{"$f":"WGRCG_RiskIndex","v":90},{"$f":"WGRCG_RiskIndex","v":90},{"$f":"WGRCG_RiskIndex","v":90},{"$f":"WGRCG_RiskIndex","v":90},{"$f":"WGRCG_RiskIndex","v":90},{"$f":"WGRCG_RiskIndex","v":90},{"$f":"WGRCG_RiskIndex","v":90},{"$f":"WGRCG_RiskIndex","v":90},{"$f":"WGRCG_RiskIndex","v":90},{"$f":"WGRCG_RiskIndex","v":90}]
[null,null,null,"Nematodes","Within last 2 years",null,null,"Goosegrass",{"$f":"WGRGG_RiskIndex","v":90},{"$f":"WGRGG_RiskIndex","v":90},{"$f":"WGRGG_RiskIndex","v":90},{"$f":"WGRGG_RiskIndex","v":90},{"$f":"WGRGG_RiskIndex","v":90},{"$f":"WGRGG_RiskIndex","v":90},{"$f":"WGRGG_RiskIndex","v":90},{"$f":"WGRGG_RiskIndex","v":90},{"$f":"WGRGG_RiskIndex","v":90},{"$f":"WGRGG_RiskIndex","v":90},{"$f":"WGRGG_RiskIndex","v":90},{"$f":"WGRGG_RiskIndex","v":90},{"$f":"WGRGG_RiskIndex","v":90}]
[null,null,null,"Sweetpotato Weevil","Within last 2 years",null,"Weeds (Perennials)",null,"Index","Low",null,null,null,"Med",null,null,null,"High"]
[null,null,null,"Wireworm","Within last 2 years",null,null,"Yellow Nutsedge",{"$f":"WPYN_RiskIndex","v":95},{"$f":"WPYN_RiskIndex","v":95},{"$f":"WPYN_RiskIndex","v":95},{"$f":"WPYN_RiskIndex","v":95},{"$f":"WPYN_RiskIndex","v":95},{"$f":"WPYN_RiskIndex","v":95},{"$f":"WPYN_RiskIndex","v":95},{"$f":"WPYN_RiskIndex","v":95},{"$f":"WPYN_RiskIndex","v":95},{"$f":"WPYN_RiskIndex","v":95},{"$f":"WPYN_RiskIndex","v":95},{"$f":"WPYN_RiskIndex","v":95},{"$f":"WPYN_RiskIndex","v":95}]
[null,null,null,"Pest Management Chemicals"]
[null,null,null,"Fungicides","None",null,"Red Dots - Change practices to eliminate.\r\nYellow Dots - Consider adjusting practices to reduce risk.\r\nGreen Dots - Risk is acceptable for selected practices."]
[null,null,null,"Insecticides","None"]
[null,null,null,"Nematicides","None"]
[null,null,null,"Pest Management Traps"]
[null,null,null,"Sweetpotato Weevil","No"]
[null,null,null,"Weed History"]
[null,null,null,"Common Lambsquarter","Within last 2 years"]
[null,null,null,"Crabgrass","Within last 2 years"]
[null,null,null,"Goosegrass","Within last 2 years"]
[null,null,null,"Morningglory","Within last 2 years"]
[null,null,null,"Palmer Amaranth","Within last 2 years"]
[null,null,null,"Pennsylvania Smartweed","Within last 2 years"]
[null,null,null,"Purslane","Within last 2 years"]
[null,null,null,"Smooth Pigweed","Within last 2 years"]
[null,null,null,"Yellow Nutsedge","Within last 2 years"]
[null,null,null,"Weed Management"]
[null,null,null,"Hand Weeding","None"]
[null,null,null,"Herbicide Applications","None"]
[null,null,null,"Tillage","None"]

{"sheet":"Crop","index":1,"n_rows":15,"n_cols":5,"rows_kept":15,"cut":false,"hidden":true,"merged":[[12,1,12,4],[13,1,13,4],[14,1,14,4],[15,1,15,4],[6,1,6,4],[7,1,7,4],[8,1,8,4],[9,1,9,4],[10,1,10,4],[11,1,11,4]]}
["Crop","Sweet Potato"]
[]
["Planting Season","Date","Month","Day of Month","Day of Year"]
["Start","2021-05-15",{"$f":"MONTH(B4)","v":5},{"$f":"DAY(B4)","v":15},{"$f":"B4-DATE(YEAR(B4),1,1)+1","v":135}]
["End","2021-07-15",{"$f":"MONTH(B5)","v":7},{"$f":"DAY(B5)","v":15},{"$f":"B5-DATE(YEAR(B5),1,1)+1","v":196}]
[]
["Title","Sweet Potato Risk Tool - NC"]
["Subtitle"]
["Credit Lines","Kira Sims and Katie Jennings"]
[null,"Department of Horticultural Science"]
[]
[null,"David Jordan and Greg Buol"]
[null,"Department of Crop and Soil Sciences"]
[]
[null,"North Carolina State University, Raleigh NC"]

{"sheet":"Log_TPL","index":2,"n_rows":179,"n_cols":20,"rows_kept":179,"cut":false,"hidden":true,"merged":[[56,5,56,9],[61,5,61,9],[24,5,24,14],[0,0,0,14],[53,5,53,9],[54,5,54,9],[55,5,55,9]]}
["Field and Production Information"]
[null,null,null,null,null,null,null,null,null,null,null,null,null,null,null,null,null,null,"Input Selection Lists"]
[null,null,null,"Crop",{"$f":"Crop","v":"Sweet Potato"},null,null,null,null,null,null,null,null,null,null,null,null,null,"Tillage_Pracs","Control_Rating"]
[null,null,null,"Variety"]
[null,null,null,null,null,null,null,null,null,null,null,null,null,null,null,null,null,null,"Bed","No Control (<5%)"]
[null,null,null,"Field Area (A)",null,null,null,null,null,null,null,null,null,null,null,null,null,null,"Chisel","Poor (5% to 20%)"]
[null,null,null,null,null,null,null,null,null,null,null,null,null,null,null,null,null,null,"Cultivate","Low (20% to 50%)"]
[null,null,null,"Soil ","Mapped Series","% of Field",null,null,null,null,null,null,null,null,null,null,null,null,"Disk","Moderate (50% to 80%)"]
[null,null,null,null,null,null,null,null,null,null,null,null,null,null,null,null,null,null,"Moldboard Plow","High (80% to 90%)"]
[null,null,null,null,null,null,null,null,null,null,null,null,null,null,null,null,null,null,"No Till","Excellent (90% to 100%)"]
[null,null,null,null,null,null,null,null,null,null,null,null,null,null,null,null,null,null,"Other"]
[null,null,null,null,null,null,null,null,null,null,null,null,null,null,null,null,null,null,"Rip"]
[null,null,null,null,null,null,null,null,null,null,null,null,null,null,null,null,null,null,"Rip and Bed"]
[null,null,null,null,null,null,null,null,null,null,null,null,null,null,null,null,null,null,"Strip Till"]
[null,null,null,"Tillage/Bedding Practice","Date","Equipment"]
[]
[]
[]
[]
[null,null,null,"Lime Applications","Date","Rate (lbs/A)"]
[null,null,null,"Current Year"]
[null,null,null,"Last Year"]
[]
[null,null,null,"Fertilizer","Date","N","P2O5","K2O","B","Cu","Fe","Mn","Mo","S","Zn"]
[null,null,null,null,null,"lbs/A"]
[]
[]
[]
[]
[]
[]
[null,null,null,"Weed Control","Date","Weeds","Weed Size","Trade Name","Rate","Trade Name","Rate","Trade Name","Rate","Trade Name","Rate","Evaluation Date","Control Rating"]
[null,null,null,"Burndown"]
[null,null,null,"Preplant"]
[null,null,null,"Cultivation"]
[]
[]
[null,null,null,"Postemergence"]
[]
[]
[null,null,null,"Hand Weeding"]
[]
[]
[null,null,null,"Pest Treaments","Date","Pest","Severity","Trade Name","Rate","Trade Name","Rate","Evaluation Date","Control Rating"]
[]
[]
[]
[]
[]
[]
[]
[]
[null,null,null,"Development Dates","Date","Crop Status"]
[null,null,null,"Planting"]
[null,null,null,"25% Vine Coverage"]
[null,null,null,"50% Vine Coverage"]
[null,null,null,"75% Vine Coverage"]
[null,null,null,"Start Tuber Formation"]
[null,null,null,"Digging"]
[null,null,null,"Harvest"]
[null,null,null,"Curing Start"]
[null,null,null,"Curing End"]
[]
[null,null,null,"Weeds at Harvest"]
[]
[]
[]
[]
[]
[]
[]
[]
[null,null,null,"Yield","CWT/ac"]
[null,null,null,"Goal"]
[null,null,null,"Actual"]
[]
[null,null,null,"Selling Price ($/CWT)"]
[]
[null,null,null,"Rainfall/Irrigation","Date","Amount (in)","Month",null,"Month","Amount (in)"]
[null,null,null,null,null,null,{"$f":"IF(ISBLANK(E80),\"\",TEXT(E80,\"mmm\"))","v":""},null,"Jan",{"$f":"SUMIF(G$80:G$179,\"=\" & I80,F$80:F$179)","v":0}]
[null,null,null,null,null,null,{"$f":"IF(ISBLANK(E81),\"\",TEXT(E81,\"mmm\"))","v":""},null,"Feb",{"$f":"SUMIF(G$80:G$179,\"=\" & I81,F$80:F$179)","v":0}]
[null,null,null,null,null,null,"",null,"Mar",0]
[null,null,null,null,null,null,"",null,"Apr",0]
[null,null,null,null,null,null,"",null,"May",0]
[null,null,null,null,null,null,"",null,"Jun",0]
[null,null,null,null,null,null,"",null,"Jul",0]
[null,null,null,null,null,null,"",null,"Aug",0]
[null,null,null,null,null,null,"",null,"Sep",0]
[null,null,null,null,null,null,"",null,"Oct",0]
[null,null,null,null,null,null,"",null,"Nov",0]
[null,null,null,null,null,null,"",null,"Dec",0]
[null,null,null,null,null,null,""]
[null,null,null,null,null,null,""]
[null,null,null,null,null,null,""]
[null,null,null,null,null,null,""]
[null,null,null,null,null,null,""]
[null,null,null,null,null,null,""]
[null,null,null,null,null,null,""]
[null,null,null,null,null,null,""]
[null,null,null,null,null,null,""]
[null,null,null,null,null,null,""]
[null,null,null,null,null,null,""]
[null,null,null,null,null,null,""]
[null,null,null,null,null,null,""]
[null,null,null,null,null,null,""]
[null,null,null,null,null,null,""]
[null,null,null,null,null,null,""]
[null,null,null,null,null,null,""]
[null,null,null,null,null,null,""]
[null,null,null,null,null,null,""]
[null,null,null,null,null,null,""]
[null,null,null,null,null,null,""]
[null,null,null,null,null,null,""]
[null,null,null,null,null,null,""]
[null,null,null,null,null,null,""]
[null,null,null,null,null,null,""]
[null,null,null,null,null,null,""]
[null,null,null,null,null,null,""]
[null,null,null,null,null,null,""]
[null,null,null,null,null,null,""]
[null,null,null,null,null,null,""]
[null,null,null,null,null,null,""]
[null,null,null,null,null,null,""]
[null,null,null,null,null,null,""]
[null,null,null,null,null,null,""]
[null,null,null,null,null,null,""]
[null,null,null,null,null,null,""]
[null,null,null,null,null,null,""]
[null,null,null,null,null,null,""]
[null,null,null,null,null,null,""]
[null,null,null,null,null,null,""]
[null,null,null,null,null,null,""]
[null,null,null,null,null,null,""]
[null,null,null,null,null,null,""]
[null,null,null,null,null,null,""]
[null,null,null,null,null,null,""]
[null,null,null,null,null,null,""]
[null,null,null,null,null,null,""]
[null,null,null,null,null,null,""]
[null,null,null,null,null,null,""]
[null,null,null,null,null,null,""]
[null,null,null,null,null,null,""]
[null,null,null,null,null,null,""]
[null,null,null,null,null,null,""]
[null,null,null,null,null,null,{"$f":"IF(ISBLANK(E145),\"\",TEXT(E145,\"mmm\"))","v":""}]
[null,null,null,null,null,null,""]
[null,null,null,null,null,null,""]
[null,null,null,null,null,null,""]
[null,null,null,null,null,null,""]
[null,null,null,null,null,null,""]
[null,null,null,null,null,null,""]
[null,null,null,null,null,null,""]
[null,null,null,null,null,null,""]
[null,null,null,null,null,null,""]
[null,null,null,null,null,null,""]
[null,null,null,null,null,null,""]
[null,null,null,null,null,null,""]
[null,null,null,null,null,null,""]
[null,null,null,null,null,null,""]
[null,null,null,null,null,null,""]
[null,null,null,null,null,null,""]
[null,null,null,null,null,null,""]
[null,null,null,null,null,null,""]
[null,null,null,null,null,null,""]
[null,null,null,null,null,null,""]
[null,null,null,null,null,null,""]
[null,null,null,null,null,null,""]
[null,null,null,null,null,null,""]
[null,null,null,null,null,null,""]
[null,null,null,null,null,null,""]
[null,null,null,null,null,null,""]
[null,null,null,null,null,null,""]
[null,null,null,null,null,null,""]
[null,null,null,null,null,null,""]
[null,null,null,null,null,null,""]
[null,null,null,null,null,null,""]
[null,null,null,null,null,null,""]
[null,null,null,null,null,null,""]
[null,null,null,null,null,null,""]

{"sheet":"Pests","index":3,"n_rows":17,"n_cols":3,"rows_kept":17,"cut":false,"hidden":true,"merged":[]}
["PestType","Pest","PestID"]
["Diseases","Black Rot","DBR"]
["Insects","Sweetpotato Weevil","ISW"]
["Insects","Wireworm","IW"]
["Postharvest Storage Rots","Fusarium Rot","PSRFR"]
["Postharvest Storage Rots","Rhizopus Soft Rot","PSRRSR"]
["Postharvest Storage Rots","Scurf","PSRS"]
["Soil Pests","Nematodes","SPN"]
["Weeds (Annual Broadleaves)","Common Lambsquarters","WABCL"]
["Weeds (Annual Broadleaves)","Morningglory","WABMG"]
["Weeds (Annual Broadleaves)","Palmer Amaranth","WABPA"]
["Weeds (Annual Broadleaves)","Pennsylvania Smartweed","WABPS"]
["Weeds (Annual Broadleaves)","Purslane","WABP"]
["Weeds (Annual Broadleaves)","Smooth Pigweed","WABSP"]
["Weeds (Annual Grasses)","Crabgrass","WGRCG"]
["Weeds (Annual Grasses)","Goosegrass","WGRGG"]
["Weeds (Perennials)","Yellow Nutsedge","WPYN"]

{"sheet":"Lists","index":4,"n_rows":34,"n_cols":40,"rows_kept":34,"cut":false,"hidden":true,"merged":[]}
["Category","Category_Pest","CategoryID","Category_List","Category_List_Type","Months","Land_Area_Units","Field_History\\Previous_Crop","Weed_Management\\Hand_Weeding","Weed_Management\\Tillage","Weed_Management\\Herbicide_Applications","Crop_Practices\\Rotation_Period","Equipment\\Sanitation","Crop_Practices\\Row_Spacing","Crop_Practices\\Plant_Spacing","Crop_Practices\\Transplants","Cultivar\\Fusarium_Rot_Resistance","Cultivar\\Rhizopus_Soft_Rot_Resistance","Cultivar\\Nematode_Resistance","Harvest\\Moisture","Harvest\\Mechanical_Damage","Crop_Practices\\Certified_Slips","Pest_History\\Black_Rot","Pest_History\\Nematodes","Pest_History\\Sweetpotato_Weevil","Pest_History\\Wireworm","Weed_History\\Common_Lambsquarter","Weed_History\\Crabgrass","Weed_History\\Goosegrass","Weed_History\\Morningglory","Weed_History\\Palmer_Amaranth","Weed_History\\Pennsylvania_Smartweed","Weed_History\\Purslane","Weed_History\\Smooth_Pigweed","Weed_History\\Yellow_Nutsedge","Pest_Management_Traps\\Sweetpotato_Weevil","Pest_Management_Chemicals\\Fungicides","Pest_Management_Chemicals\\Insecticides","Pest_Management_Chemicals\\Nematicides","Harvest\\Curing_and_Storage"]
["Crop_Practices\\Certified_Slips",null,"Crop_Practices\\Certified_Slips","Crop_Practices\\Certified_Slips","Single","(01) January","ac","Corn","01|None","01|None","01|None","01|Continuous","01|No","01|36 inches","01|10 inches","01|Not clean with soil","01|No","01|No","01|No","01|Dry","01|Limited","01|No","01|Never","01|Never","01|Never","01|Never","01|Never","01|Never","01|Never","01|Never","01|Never","01|Never","01|Never","01|Never","01|Never","01|No","01|None","01|None","01|None","01|Delayed"]
["Crop_Practices\\Plant_Spacing",null,"Crop_Practices\\Plant_Spacing","Crop_Practices\\Plant_Spacing","Single","(02) February","ha","Other","02|1 Time","02|Narrow Cultivation","02|1 recommended","02|1 year","02|Yes","02|42 or 44 inches","02|12 inches","02|Clean and soilless","02|Yes","02|Yes","02|Yes","02|Wet","02|Often","02|Yes","02|Within last 2 years","02|Within last 2 years","02|Within last 2 years","02|Within last 2 years","02|Within last 2 years","02|Within last 2 years","02|Within last 2 years","02|Within last 2 years","02|Within last 2 years","02|Within last 2 years","02|Within last 2 years","02|Within last 2 years","02|Within last 2 years","02|Yes","02|1 recommended","02|1 recommended","02|1 recommended","02|Prompt"]
["Crop_Practices\\Rotation_Period",null,"Crop_Practices\\Rotation_Period","Crop_Practices\\Rotation_Period","Single","(03) March",null,"Soybean","03|2+ Times","03|Wide Cultivation","03|2 recommended","03|2 years",null,null,null,null,null,null,null,null,null,null,"03|Within 2 to 5 years","03|Within 2 to 5 years","03|Within 2 to 5 years","03|Within 2 to 3 yeares","03|Within last 2 to 5 years","03|Within 2 to 5 years","03|Within 2 to 5 years","03|Within 2 to 5 years","03|Within 2 to 5 years","03|Within 2 to 5 years","03|Within 2 to 5 years","03|Within 2 to 5 years","03|Within 2 to 5 years",null,"03|2+ recommended","03|2 recommended","03|2+ recommended"]
["Crop_Practices\\Row_Spacing",null,"Crop_Practices\\Row_Spacing","Crop_Practices\\Row_Spacing","Single","(04) April",null,null,null,null,"04|3 or more recommended","04|3 years",null,null,null,null,null,null,null,null,null,null,"04|More than 5 years","04|More than 5 years","04|More than 5 years ago","04|More than 5 years ago","04|More than 5 years ago","04|More than 5 years ago","04|More than 5 years ago","04|More than 5 years ago","04|More than 5 years ago","04|More than 5 years ago","04|More than 5 years ago","04|More than 5 years ago","04|More than 5 years ago",null,null,"04|3+ recommended"]
["Crop_Practices\\Transplants",null,"Crop_Practices\\Transplants","Crop_Practices\\Transplants","Single","(05) May",null,null,null,null,null,"05|4 or more years"]
["Cultivar\\Fusarium_Rot_Resistance",null,"Cultivar\\Fusarium_Rot_Resistance","Cultivar\\Fusarium_Rot_Resistance","Single","(06) June"]
["Cultivar\\Nematode_Resistance",null,"Cultivar\\Nematode_Resistance","Cultivar\\Nematode_Resistance","Single","(07) July"]
["Cultivar\\Rhizopus_Soft_Rot_Resistance",null,"Cultivar\\Rhizopus_Soft_Rot_Resistance","Cultivar\\Rhizopus_Soft_Rot_Resistance","Single","(08) August"]
["Equipment\\Sanitation",null,"Equipment\\Sanitation","Equipment\\Sanitation","Single","(09) September"]
["Field_History\\Previous_Crop",null,"Field_History\\Previous_Crop","Field_History\\Previous_Crop","Single","(10) October"]
["Harvest\\Curing_and_Storage",null,"Harvest\\Curing_and_Storage","Harvest\\Curing_and_Storage","Single","(11) November"]
["Harvest\\Mechanical_Damage",null,"Harvest\\Mechanical_Damage","Harvest\\Mechanical_Damage","Single","(12) December"]
["Harvest\\Moisture",null,"Harvest\\Moisture","Harvest\\Moisture","Single"]
["Pest_History\\Black_Rot",null,"Pest_History\\Black_Rot","Pest_History\\Black_Rot","Single"]
["Pest_History\\Nematodes",null,"Pest_History\\Nematodes","Pest_History\\Nematodes","Single"]
["Pest_History\\Sweetpotato_Weevil",null,"Pest_History\\Sweetpotato_Weevil","Pest_History\\Sweetpotato_Weevil","Single"]
["Pest_History\\Wireworm",null,"Pest_History\\Wireworm","Pest_History\\Wireworm","Single"]
["Pest_Management_Chemicals\\Fungicides",null,"Pest_Management_Chemicals\\Fungicides","Pest_Management_Chemicals\\Fungicides","Single"]
["Pest_Management_Chemicals\\Insecticides",null,"Pest_Management_Chemicals\\Insecticides","Pest_Management_Chemicals\\Insecticides","Single"]
["Pest_Management_Chemicals\\Nematicides",null,"Pest_Management_Chemicals\\Nematicides","Pest_Management_Chemicals\\Nematicides","Single"]
["Pest_Management_Traps\\Sweetpotato_Weevil",null,"Pest_Management_Traps\\Sweetpotato_Weevil","Pest_Management_Traps\\Sweetpotato_Weevil","Single"]
["Weed_History\\Common_Lambsquarter",null,"Weed_History\\Common_Lambsquarter","Weed_History\\Common_Lambsquarter","Single"]
["Weed_History\\Crabgrass",null,"Weed_History\\Crabgrass","Weed_History\\Crabgrass","Single"]
["Weed_History\\Goosegrass",null,"Weed_History\\Goosegrass","Weed_History\\Goosegrass","Single"]
["Weed_History\\Morningglory",null,"Weed_History\\Morningglory","Weed_History\\Morningglory","Single"]
["Weed_History\\Palmer_Amaranth",null,"Weed_History\\Palmer_Amaranth","Weed_History\\Palmer_Amaranth","Single"]
["Weed_History\\Pennsylvania_Smartweed",null,"Weed_History\\Pennsylvania_Smartweed","Weed_History\\Pennsylvania_Smartweed","Single"]
["Weed_History\\Purslane",null,"Weed_History\\Purslane","Weed_History\\Purslane","Single"]
["Weed_History\\Smooth_Pigweed",null,"Weed_History\\Smooth_Pigweed","Weed_History\\Smooth_Pigweed","Single"]
["Weed_History\\Yellow_Nutsedge",null,"Weed_History\\Yellow_Nutsedge","Weed_History\\Yellow_Nutsedge","Single"]
["Weed_Management\\Hand_Weeding",null,"Weed_Management\\Hand_Weeding","Weed_Management\\Hand_Weeding","Single"]
["Weed_Management\\Herbicide_Applications",null,"Weed_Management\\Herbicide_Applications","Weed_Management\\Herbicide_Applications","Single"]
["Weed_Management\\Tillage",null,"Weed_Management\\Tillage","Weed_Management\\Tillage","Single"]

{"sheet":"Costs","index":5,"n_rows":24,"n_cols":14,"rows_kept":24,"cut":false,"hidden":true,"merged":[[0,7,0,9],[0,10,0,12],[6,7,6,9],[6,10,6,12],[10,7,10,9],[10,10,10,12]]}
["Land Area Units ","ac",null,null,null,null,null,{"$f":"Cost_Header","v":"Cost ($/ac)"},null,null,{"$f":"CONCATENATE(\"Person Hours (hrs/\",sel_Land_Area_Units,\")\")","v":"Person Hours (hrs/ac)"}]
["Category","Item",{"$f":"CONCATENATE(\"Cost ($/\",sel_Land_Area_Units,\")\")","v":"Cost ($/ac)"},"Multiplier",{"$f":"CONCATENATE(\"Person Hours (hrs/\",sel_Land_Area_Units,\")\")","v":"Person Hours (hrs/ac)"},null,"Category","Max","Min","Sel","Max","Min","Sel","Selection"]
["Base_Cost",null,210,null,null,null,"Base_Cost",{"$f":"Cost_Base","v":210},{"$f":"Cost_Base","v":210},{"$f":"Cost_Base","v":210},{"$f":"PersonHours_Base","v":0},{"$f":"PersonHours_Base","v":0},{"$f":"PersonHours_Base","v":0}]
[]
[null,null,null,null,null,null,"Total",{"$f":"SUM(H$3:H3)","v":210},{"$f":"SUM(I$3:I3)","v":210},{"$f":"IF(ISERROR(SUM(J$3:J3)),0,SUM(J$3:J3))","v":210},{"$f":"SUM(K$3:K3)","v":0},{"$f":"SUM(L$3:L3)","v":0},{"$f":"IF(ISERROR(SUM(M$3:M3)),0,SUM(M$3:M3))","v":0}]
[]
[null,null,null,null,null,null,null,{"$f":"CONCATENATE(\"Cost Thresholds ($/\",sel_Land_Area_Units,\")\")","v":"Cost Thresholds ($/ac)"},null,null,{"$f":"CONCATENATE(\"Person Hour Thresholds (hrs/\",sel_Land_Area_Units,\")\")","v":"Person Hour Thresholds (hrs/ac)"}]
[null,null,null,null,null,null,"High",{"$f":"Cost_Min + 0.66667*(Cost_Max-Cost_Min)","v":210},null,null,{"$f":"PersonHours_Min + 0.66667*(PersonHours_Max-PersonHours_Min)","v":0}]
[null,null,null,null,null,null,"Moderate",{"$f":"Cost_Min + 0.33333*(Cost_Max-Cost_Min)","v":210},null,null,{"$f":"PersonHours_Min + 0.33333*(PersonHours_Max-PersonHours_Min)","v":0}]
[]
[null,null,null,null,null,null,null,{"$f":"CONCATENATE(\"Cost Ranges ($/\",sel_Land_Area_Units,\")\")","v":"Cost Ranges ($/ac)"},null,null,{"$f":"CONCATENATE(\"Person Hour Ranges (hrs/\",sel_Land_Area_Units,\")\")","v":"Person Hour Ranges (hrs/ac)"}]
[null,null,null,null,null,null,"Base",{"$f":"Cost_Base","v":210},null,null,{"$f":"PersonHours_Base","v":0}]
[null,null,null,null,null,null,"Low",{"$f":"Cost_Moderate-Cost_Base","v":0},null,null,{"$f":"PersonHours_Moderate-PersonHours_Base","v":0}]
[null,null,null,null,null,null,"Moderate",{"$f":"Cost_High-Cost_Moderate","v":0},null,null,{"$f":"PersonHours_High-PersonHours_Moderate","v":0}]
[null,null,null,null,null,null,"High",{"$f":"Cost_Max-Cost_High","v":0},null,null,{"$f":"PersonHours_Max-PersonHours_High","v":0}]
[]
[null,null,null,null,null,null,{"$f":"CONCATENATE(\"Estimated Cost: $\",ROUNDUP(TRUNC(Cost,2),0),\"/\",sel_Land_Area_Units)","v":"Estimated Cost: $210/ac"}]
[]
[]
[]
[]
[]
[]
[null,null,null,null,null,null,{"$f":"CONCATENATE(\"Estimated Person Hours: \",ROUNDUP(TRUNC(PersonHours,2),0),\" hrs/\",sel_Land_Area_Units)","v":"Estimated Person Hours: 0 hrs/ac"}]

{"sheet":"Logos","index":6,"n_rows":0,"n_cols":0,"rows_kept":0,"cut":false,"hidden":true,"merged":[]}

{"sheet":"Pest_Report","index":7,"n_rows":42,"n_cols":4,"rows_kept":42,"cut":false,"hidden":true,"merged":[[36,0,36,1],[36,2,36,3],[37,3,39,3],[41,0,41,3],[14,3,15,3],[16,0,16,1],[16,2,16,3],[17,3,18,3],[19,0,19,1],[19,2,19,3],[20,3,21,3],[22,0,22,1],[22,2,22,3],[23,3,26,3],[27,0,27,1],[27,2,27,3],[28,3,30,3],[31,0,31,1],[31,2,31,3],[32,3,35,3],[0,0,0,3],[5,0,5,1],[5,2,5,3],[13,0,13,1],[13,2,13,3],[6,3,7,3],[8,0,8,1],[8,2,8,3],[9,3,12,3]]}
["Sweet Potato - Palmer Amaranth Risk Summary"]
[]
[]
[]
[]
["Crop Practices\\Plant Spacing",null,"Risk Points"]
[null,"12 inches*",5,5]
[null,"10 inches",3]
["Crop Practices\\Rotation Period",null,"Risk Points"]
[null,"Continuous*",20,20]
[null,"1 year",15]
[null,"2 years, 3 years",5]
[null,"4 or more years",0]
["Crop Practices\\Row Spacing",null,"Risk Points"]
[null,"42 or 44 inches*",5,5]
[null,"36 inches",3]
["Equipment\\Sanitation",null,"Risk Points"]
[null,"No*",5,5]
[null,"Yes",-5]
["Field History\\Previous Crop",null,"Risk Points"]
[null,"Other*",0,0]
[null,"Corn, Soybean",-5]
["Weed History\\Palmer Amaranth",null,"Risk Points"]
[null,"Within last 2 years*",20,20]
[null,"Within 2 to 5 years",15]
[null,"More than 5 years ago",10]
[null,"Never",0]
["Weed Management\\Hand Weeding",null,"Risk Points"]
[null,"None*",10,10]
[null,"1 Time",-5]
[null,"2+ Times",-10]
["Weed Management\\Herbicide Applications",null,"Risk Points"]
[null,"None*",20,20]
[null,"1 recommended",15]
[null,"2 recommended",10]
[null,"3 or more recommended",5]
["Weed Management\\Tillage",null,"Risk Points"]
[null,"None*",15,15]
[null,"Wide Cultivation",-5]
[null,"Narrow Cultivation",-10]
[]
["* Selected options used in calculating pest risk.\r\nNote: Reduction in pest risk value by a control practice will be less under low risk conditions."]

{"sheet":"WGRCG","index":8,"n_rows":28,"n_cols":12,"rows_kept":28,"cut":false,"hidden":true,"merged":[[0,0,0,3]]}
["Crabgrass"]
["Category","Risk Level","Risk Level Description","Points",null,null,null,"Category","Max","Min","Risk","Selection"]
["Crop_Practices\\Plant_Spacing",1,"12 inches",5,null,null,null,"Crop_Practices\\Rotation_Period",20,0,{"$f":"getRiskValue(\"A:A\",H3,J3,L3,\"Single\")","v":20},{"$f":"IF(ISBLANK(sel_Crop_Practices\\Rotation_Period),\"\",sel_Crop_Practices\\Rotation_Period)","v":"Continuous"}]
["Crop_Practices\\Plant_Spacing",2,"10 inches",3,null,null,null,"Weed_Management\\Herbicide_Applications",20,5,20,{"$f":"IF(ISBLANK(sel_Weed_Management\\Herbicide_Applications),\"\",sel_Weed_Management\\Herbicide_Applications)","v":"None"}]
["Crop_Practices\\Rotation_Period",1,"Continuous",20,null,null,null,"Weed_History\\Crabgrass",15,-5,15,{"$f":"IF(ISBLANK(sel_Weed_History\\Crabgrass),\"\",sel_Weed_History\\Crabgrass)","v":"Within last 2 years"}]
["Crop_Practices\\Rotation_Period",2,"1 year",15,null,null,null,"Weed_Management\\Tillage",15,-10,15,{"$f":"IF(ISBLANK(sel_Weed_Management\\Tillage),\"\",sel_Weed_Management\\Tillage)","v":"None"}]
["Crop_Practices\\Rotation_Period",3,"2 years|3 years",5,null,null,null,"Crop_Practices\\Plant_Spacing",5,3,5,{"$f":"IF(ISBLANK(sel_Crop_Practices\\Plant_Spacing),\"\",sel_Crop_Practices\\Plant_Spacing)","v":"12 inches"}]
["Crop_Practices\\Rotation_Period",4,"4 or more years",0,null,null,null,"Crop_Practices\\Row_Spacing",5,3,5,{"$f":"IF(ISBLANK(sel_Crop_Practices\\Row_Spacing),\"\",sel_Crop_Practices\\Row_Spacing)","v":"42 or 44 inches"}]
["Crop_Practices\\Row_Spacing",1,"42 or 44 inches",5,null,null,null,"Equipment\\Sanitation",5,-5,5,{"$f":"IF(ISBLANK(sel_Equipment\\Sanitation),\"\",sel_Equipment\\Sanitation)","v":"No"}]
["Crop_Practices\\Row_Spacing",2,"36 inches",3,null,null,null,"Weed_Management\\Hand_Weeding",5,-5,5,{"$f":"IF(ISBLANK(sel_Weed_Management\\Hand_Weeding),\"\",sel_Weed_Management\\Hand_Weeding)","v":"None"}]
["Equipment\\Sanitation",1,"No",5,null,null,null,"Field_History\\Previous_Crop",0,-5,0,{"$f":"IF(ISBLANK(sel_Field_History\\Previous_Crop),\"\",sel_Field_History\\Previous_Crop)","v":"Other"}]
["Equipment\\Sanitation",2,"Yes",-5]
["Field_History\\Previous_Crop",1,"Other",0,null,null,null,"Total",{"$f":"SUMIF(I3:I11,\">0\")","v":90},{"$f":"SUMIF(J3:J11,\">0\")","v":11},{"$f":"MAX(WGRCG_MinRiskIndex,SUM(K3:K11))","v":90}]
["Field_History\\Previous_Crop",2,"Corn|Soybean",-5]
["Weed_History\\Crabgrass",1,"Within last 2 years",15,null,null,null,"High Risk Index",40]
["Weed_History\\Crabgrass",2,"Within 2 to 5 years",10,null,null,null,"Moderate Risk Index",26]
["Weed_History\\Crabgrass",3,"More than 5 years ago",5]
["Weed_History\\Crabgrass",4,"Never",-5]
["Weed_Management\\Hand_Weeding",1,"None",5]
["Weed_Management\\Hand_Weeding",2,"1 Time",0]
["Weed_Management\\Hand_Weeding",3,"2+ Times",-5]
["Weed_Management\\Herbicide_Applications",1,"None",20]
["Weed_Management\\Herbicide_Applications",2,"1 recommended",15]
["Weed_Management\\Herbicide_Applications",3,"2 recommended",10]
["Weed_Management\\Herbicide_Applications",4,"3 or more recommended",5]
["Weed_Management\\Tillage",1,"None",15]
["Weed_Management\\Tillage",2,"Wide Cultivation",-5]
["Weed_Management\\Tillage",3,"Narrow Cultivation",-10]

{"sheet":"WGRGG","index":9,"n_rows":28,"n_cols":12,"rows_kept":28,"cut":false,"hidden":true,"merged":[[0,0,0,3]]}
["Goosegrass"]
["Category","Risk Level","Risk Level Description","Points",null,null,null,"Category","Max","Min","Risk","Selection"]
["Crop_Practices\\Plant_Spacing",1,"12 inches",5,null,null,null,"Crop_Practices\\Rotation_Period",20,0,{"$f":"getRiskValue(\"A:A\",H3,J3,L3,\"Single\")","v":20},{"$f":"IF(ISBLANK(sel_Crop_Practices\\Rotation_Period),\"\",sel_Crop_Practices\\Rotation_Period)","v":"Continuous"}]
["Crop_Practices\\Plant_Spacing",2,"10 inches",3,null,null,null,"Weed_Management\\Herbicide_Applications",20,5,20,{"$f":"IF(ISBLANK(sel_Weed_Management\\Herbicide_Applications),\"\",sel_Weed_Management\\Herbicide_Applications)","v":"None"}]
["Crop_Practices\\Rotation_Period",1,"Continuous",20,null,null,null,"Weed_History\\Goosegrass",15,-5,15,{"$f":"IF(ISBLANK(sel_Weed_History\\Goosegrass),\"\",sel_Weed_History\\Goosegrass)","v":"Within last 2 years"}]
["Crop_Practices\\Rotation_Period",2,"1 year",15,null,null,null,"Weed_Management\\Tillage",15,-10,15,{"$f":"IF(ISBLANK(sel_Weed_Management\\Tillage),\"\",sel_Weed_Management\\Tillage)","v":"None"}]
["Crop_Practices\\Rotation_Period",3,"2 years|3 years",5,null,null,null,"Crop_Practices\\Plant_Spacing",5,3,5,{"$f":"IF(ISBLANK(sel_Crop_Practices\\Plant_Spacing),\"\",sel_Crop_Practices\\Plant_Spacing)","v":"12 inches"}]
["Crop_Practices\\Rotation_Period",4,"4 or more years",0,null,null,null,"Crop_Practices\\Row_Spacing",5,3,5,{"$f":"IF(ISBLANK(sel_Crop_Practices\\Row_Spacing),\"\",sel_Crop_Practices\\Row_Spacing)","v":"42 or 44 inches"}]
["Crop_Practices\\Row_Spacing",1,"42 or 44 inches",5,null,null,null,"Equipment\\Sanitation",5,-5,5,{"$f":"IF(ISBLANK(sel_Equipment\\Sanitation),\"\",sel_Equipment\\Sanitation)","v":"No"}]
["Crop_Practices\\Row_Spacing",2,"36 inches",3,null,null,null,"Weed_Management\\Hand_Weeding",5,-5,5,{"$f":"IF(ISBLANK(sel_Weed_Management\\Hand_Weeding),\"\",sel_Weed_Management\\Hand_Weeding)","v":"None"}]
["Equipment\\Sanitation",1,"No",5,null,null,null,"Field_History\\Previous_Crop",0,-5,0,{"$f":"IF(ISBLANK(sel_Field_History\\Previous_Crop),\"\",sel_Field_History\\Previous_Crop)","v":"Other"}]
["Equipment\\Sanitation",2,"Yes",-5]
["Field_History\\Previous_Crop",1,"Other",0,null,null,null,"Total",{"$f":"SUMIF(I3:I11,\">0\")","v":90},{"$f":"SUMIF(J3:J11,\">0\")","v":11},{"$f":"MAX(WGRGG_MinRiskIndex,SUM(K3:K11))","v":90}]
["Field_History\\Previous_Crop",2,"Corn|Soybean",-5]
["Weed_History\\Goosegrass",1,"Within last 2 years",15,null,null,null,"High Risk Index",40]
["Weed_History\\Goosegrass",2,"Within 2 to 5 years",10,null,null,null,"Moderate Risk Index",26]
["Weed_History\\Goosegrass",3,"More than 5 years ago",5]
["Weed_History\\Goosegrass",4,"Never",-5]
["Weed_Management\\Hand_Weeding",1,"None",5]
["Weed_Management\\Hand_Weeding",2,"1 Time",0]
["Weed_Management\\Hand_Weeding",3,"2+ Times",-5]
["Weed_Management\\Herbicide_Applications",1,"None",20]
["Weed_Management\\Herbicide_Applications",2,"1 recommended",15]
["Weed_Management\\Herbicide_Applications",3,"2 recommended",10]
["Weed_Management\\Herbicide_Applications",4,"3 or more recommended",5]
["Weed_Management\\Tillage",1,"None",15]
["Weed_Management\\Tillage",2,"Wide Cultivation",-5]
["Weed_Management\\Tillage",3,"Narrow Cultivation",-10]

{"sheet":"WABCL","index":10,"n_rows":28,"n_cols":12,"rows_kept":28,"cut":false,"hidden":true,"merged":[[0,0,0,3]]}
["Common Lambsquarters"]
["Category","Risk Level","Risk Level Description","Points",null,null,null,"Category","Max","Min","Risk","Selection"]
["Crop_Practices\\Plant_Spacing",1,"12 inches",5,null,null,null,"Crop_Practices\\Rotation_Period",20,0,{"$f":"getRiskValue(\"A:A\",H3,J3,L3,\"Single\")","v":20},{"$f":"IF(ISBLANK(sel_Crop_Practices\\Rotation_Period),\"\",sel_Crop_Practices\\Rotation_Period)","v":"Continuous"}]
["Crop_Practices\\Plant_Spacing",2,"10 inches",3,null,null,null,"Weed_Management\\Herbicide_Applications",20,5,20,{"$f":"IF(ISBLANK(sel_Weed_Management\\Herbicide_Applications),\"\",sel_Weed_Management\\Herbicide_Applications)","v":"None"}]
["Crop_Practices\\Rotation_Period",1,"Continuous",20,null,null,null,"Weed_History\\Common_Lambsquarter",15,-5,15,{"$f":"IF(ISBLANK(sel_Weed_History\\Common_Lambsquarter),\"\",sel_Weed_History\\Common_Lambsquarter)","v":"Within last 2 years"}]
["Crop_Practices\\Rotation_Period",2,"1 year",15,null,null,null,"Weed_Management\\Tillage",15,-10,15,{"$f":"IF(ISBLANK(sel_Weed_Management\\Tillage),\"\",sel_Weed_Management\\Tillage)","v":"None"}]
["Crop_Practices\\Rotation_Period",3,"2 years|3 years",5,null,null,null,"Weed_Management\\Hand_Weeding",10,-10,10,{"$f":"IF(ISBLANK(sel_Weed_Management\\Hand_Weeding),\"\",sel_Weed_Management\\Hand_Weeding)","v":"None"}]
["Crop_Practices\\Rotation_Period",4,"4 or more years",0,null,null,null,"Crop_Practices\\Plant_Spacing",5,3,5,{"$f":"IF(ISBLANK(sel_Crop_Practices\\Plant_Spacing),\"\",sel_Crop_Practices\\Plant_Spacing)","v":"12 inches"}]
["Crop_Practices\\Row_Spacing",1,"42 or 44 inches",5,null,null,null,"Crop_Practices\\Row_Spacing",5,3,5,{"$f":"IF(ISBLANK(sel_Crop_Practices\\Row_Spacing),\"\",sel_Crop_Practices\\Row_Spacing)","v":"42 or 44 inches"}]
["Crop_Practices\\Row_Spacing",2,"36 inches",3,null,null,null,"Equipment\\Sanitation",5,-5,5,{"$f":"IF(ISBLANK(sel_Equipment\\Sanitation),\"\",sel_Equipment\\Sanitation)","v":"No"}]
["Equipment\\Sanitation",1,"No",5,null,null,null,"Field_History\\Previous_Crop",0,-5,0,{"$f":"IF(ISBLANK(sel_Field_History\\Previous_Crop),\"\",sel_Field_History\\Previous_Crop)","v":"Other"}]
["Equipment\\Sanitation",2,"Yes",-5]
["Field_History\\Previous_Crop",1,"Other",0,null,null,null,"Total",{"$f":"SUMIF(I3:I11,\">0\")","v":95},{"$f":"SUMIF(J3:J11,\">0\")","v":11},{"$f":"MAX(WABCL_MinRiskIndex,SUM(K3:K11))","v":95}]
["Field_History\\Previous_Crop",2,"Corn|Soybean",-5]
["Weed_History\\Common_Lambsquarter",1,"Within last 2 years",15,null,null,null,"High Risk Index",65]
["Weed_History\\Common_Lambsquarter",2,"Within last 2 to 5 years",10,null,null,null,"Moderate Risk Index",21]
["Weed_History\\Common_Lambsquarter",3,"More than 5 years ago",5]
["Weed_History\\Common_Lambsquarter",4,"Never",-5]
["Weed_Management\\Hand_Weeding",1,"None",10]
["Weed_Management\\Hand_Weeding",2,"1 Time",-5]
["Weed_Management\\Hand_Weeding",3,"2+ Times",-10]
["Weed_Management\\Herbicide_Applications",1,"None",20]
["Weed_Management\\Herbicide_Applications",2,"1 recommended",15]
["Weed_Management\\Herbicide_Applications",3,"2 recommended",10]
["Weed_Management\\Herbicide_Applications",4,"3 or more recommended",5]
["Weed_Management\\Tillage",1,"None",15]
["Weed_Management\\Tillage",2,"Wide Cultivation",-5]
["Weed_Management\\Tillage",3,"Narrow Cultivation",-10]

{"sheet":"WABMG","index":11,"n_rows":26,"n_cols":12,"rows_kept":26,"cut":false,"hidden":true,"merged":[[0,0,0,3]]}
["Morningglory"]
["Category","Risk Level","Risk Level Description","Points",null,null,null,"Category","Max","Min","Risk","Selection"]
["Crop_Practices\\Plant_Spacing",1,"12 inches",5,null,null,null,"Crop_Practices\\Rotation_Period",20,0,{"$f":"getRiskValue(\"A:A\",H3,J3,L3,\"Single\")","v":20},{"$f":"IF(ISBLANK(sel_Crop_Practices\\Rotation_Period),\"\",sel_Crop_Practices\\Rotation_Period)","v":"Continuous"}]
["Crop_Practices\\Plant_Spacing",2,"10 inches",3,null,null,null,"Weed_Management\\Herbicide_Applications",20,5,20,{"$f":"IF(ISBLANK(sel_Weed_Management\\Herbicide_Applications),\"\",sel_Weed_Management\\Herbicide_Applications)","v":"None"}]
["Crop_Practices\\Rotation_Period",1,"Continuous",20,null,null,null,"Weed_History\\Morningglory",15,-5,15,{"$f":"IF(ISBLANK(sel_Weed_History\\Morningglory),\"\",sel_Weed_History\\Morningglory)","v":"Within last 2 years"}]
["Crop_Practices\\Rotation_Period",2,"1 year",15,null,null,null,"Weed_Management\\Tillage",15,-10,15,{"$f":"IF(ISBLANK(sel_Weed_Management\\Tillage),\"\",sel_Weed_Management\\Tillage)","v":"None"}]
["Crop_Practices\\Rotation_Period",3,"2 years|3 years",5,null,null,null,"Crop_Practices\\Plant_Spacing",5,3,5,{"$f":"IF(ISBLANK(sel_Crop_Practices\\Plant_Spacing),\"\",sel_Crop_Practices\\Plant_Spacing)","v":"12 inches"}]
["Crop_Practices\\Rotation_Period",4,"4 or more years",0,null,null,null,"Crop_Practices\\Row_Spacing",5,3,5,{"$f":"IF(ISBLANK(sel_Crop_Practices\\Row_Spacing),\"\",sel_Crop_Practices\\Row_Spacing)","v":"42 or 44 inches"}]
["Crop_Practices\\Row_Spacing",1,"42 or 44 inches",5,null,null,null,"Equipment\\Sanitation",5,-5,5,{"$f":"IF(ISBLANK(sel_Equipment\\Sanitation),\"\",sel_Equipment\\Sanitation)","v":"No"}]
["Crop_Practices\\Row_Spacing",2,"36 inches",3,null,null,null,"Weed_Management\\Hand_Weeding",5,-5,5,{"$f":"IF(ISBLANK(sel_Weed_Management\\Hand_Weeding),\"\",sel_Weed_Management\\Hand_Weeding)","v":"None"}]
["Equipment\\Sanitation",1,"No",5]
["Equipment\\Sanitation",2,"Yes",-5,null,null,null,"Total",{"$f":"SUMIF(I3:I10,\">0\")","v":90},{"$f":"SUMIF(J3:J10,\">0\")","v":11},{"$f":"MAX(WABMG_MinRiskIndex,SUM(K3:K10))","v":90}]
["Weed_History\\Morningglory",1,"Within last 2 years",15]
["Weed_History\\Morningglory",2,"Within 2 to 5 years",10,null,null,null,"High Risk Index",65]
["Weed_History\\Morningglory",3,"More than 5 years ago",5,null,null,null,"Moderate Risk Index",21]
["Weed_History\\Morningglory",4,"Never",-5]
["Weed_Management\\Hand_Weeding",1,"None",5]
["Weed_Management\\Hand_Weeding",2,"1 Time",0]
["Weed_Management\\Hand_Weeding",3,"2+ Times",-5]
["Weed_Management\\Herbicide_Applications",1,"None",20]
["Weed_Management\\Herbicide_Applications",2,"1 recommended",15]
["Weed_Management\\Herbicide_Applications",3,"2 recommended",10]
["Weed_Management\\Herbicide_Applications",4,"3 or more recommended",5]
["Weed_Management\\Tillage",1,"None",15]
["Weed_Management\\Tillage",2,"Wide Cultivation",-5]
["Weed_Management\\Tillage",3,"Narrow Cultivation",-10]

{"sheet":"WABPA","index":12,"n_rows":28,"n_cols":12,"rows_kept":28,"cut":false,"hidden":true,"merged":[[0,0,0,3]]}
["Palmer Amaranth"]
["Category","Risk Level","Risk Level Description","Points",null,null,null,"Category","Max","Min","Risk","Selection"]
["Crop_Practices\\Plant_Spacing",1,"12 inches",5,null,null,null,"Crop_Practices\\Rotation_Period",20,0,{"$f":"getRiskValue(\"A:A\",H3,J3,L3,\"Single\")","v":20},{"$f":"IF(ISBLANK(sel_Crop_Practices\\Rotation_Period),\"\",sel_Crop_Practices\\Rotation_Period)","v":"Continuous"}]
["Crop_Practices\\Plant_Spacing",2,"10 inches",3,null,null,null,"Weed_History\\Palmer_Amaranth",20,0,20,{"$f":"IF(ISBLANK(sel_Weed_History\\Palmer_Amaranth),\"\",sel_Weed_History\\Palmer_Amaranth)","v":"Within last 2 years"}]
["Crop_Practices\\Rotation_Period",1,"Continuous",20,null,null,null,"Weed_Management\\Herbicide_Applications",20,5,20,{"$f":"IF(ISBLANK(sel_Weed_Management\\Herbicide_Applications),\"\",sel_Weed_Management\\Herbicide_Applications)","v":"None"}]
["Crop_Practices\\Rotation_Period",2,"1 year",15,null,null,null,"Weed_Management\\Tillage",15,-10,15,{"$f":"IF(ISBLANK(sel_Weed_Management\\Tillage),\"\",sel_Weed_Management\\Tillage)","v":"None"}]
["Crop_Practices\\Rotation_Period",3,"2 years|3 years",5,null,null,null,"Weed_Management\\Hand_Weeding",10,-10,10,{"$f":"IF(ISBLANK(sel_Weed_Management\\Hand_Weeding),\"\",sel_Weed_Management\\Hand_Weeding)","v":"None"}]
["Crop_Practices\\Rotation_Period",4,"4 or more years",0,null,null,null,"Crop_Practices\\Plant_Spacing",5,3,5,{"$f":"IF(ISBLANK(sel_Crop_Practices\\Plant_Spacing),\"\",sel_Crop_Practices\\Plant_Spacing)","v":"12 inches"}]
["Crop_Practices\\Row_Spacing",1,"42 or 44 inches",5,null,null,null,"Crop_Practices\\Row_Spacing",5,3,5,{"$f":"IF(ISBLANK(sel_Crop_Practices\\Row_Spacing),\"\",sel_Crop_Practices\\Row_Spacing)","v":"42 or 44 inches"}]
["Crop_Practices\\Row_Spacing",2,"36 inches",3,null,null,null,"Equipment\\Sanitation",5,-5,5,{"$f":"IF(ISBLANK(sel_Equipment\\Sanitation),\"\",sel_Equipment\\Sanitation)","v":"No"}]
["Equipment\\Sanitation",1,"No",5,null,null,null,"Field_History\\Previous_Crop",0,-5,0,{"$f":"IF(ISBLANK(sel_Field_History\\Previous_Crop),\"\",sel_Field_History\\Previous_Crop)","v":"Other"}]
["Equipment\\Sanitation",2,"Yes",-5]
["Field_History\\Previous_Crop",1,"Other",0,null,null,null,"Total",{"$f":"SUMIF(I3:I11,\">0\")","v":100},{"$f":"SUMIF(J3:J11,\">0\")","v":11},{"$f":"MAX(WABPA_MinRiskIndex,SUM(K3:K11))","v":100}]
["Field_History\\Previous_Crop",2,"Corn|Soybean",-5]
["Weed_History\\Palmer_Amaranth",1,"Within last 2 years",20,null,null,null,"High Risk Index",40]
["Weed_History\\Palmer_Amaranth",2,"Within 2 to 5 years",15,null,null,null,"Moderate Risk Index",26]
["Weed_History\\Palmer_Amaranth",3,"More than 5 years ago",10]
["Weed_History\\Palmer_Amaranth",4,"Never",0]
["Weed_Management\\Hand_Weeding",1,"None",10]
["Weed_Management\\Hand_Weeding",2,"1 Time",-5]
["Weed_Management\\Hand_Weeding",3,"2+ Times",-10]
["Weed_Management\\Herbicide_Applications",1,"None",20]
["Weed_Management\\Herbicide_Applications",2,"1 recommended",15]
["Weed_Management\\Herbicide_Applications",3,"2 recommended",10]
["Weed_Management\\Herbicide_Applications",4,"3 or more recommended",5]
["Weed_Management\\Tillage",1,"None",15]
["Weed_Management\\Tillage",2,"Wide Cultivation",-5]
["Weed_Management\\Tillage",3,"Narrow Cultivation",-10]

{"sheet":"WABPS","index":13,"n_rows":28,"n_cols":12,"rows_kept":28,"cut":false,"hidden":true,"merged":[[0,0,0,3]]}
["Pennsylvania Smartweed"]
["Category","Risk Level","Risk Level Description","Points",null,null,null,"Category","Max","Min","Risk","Selection"]
["Crop_Practices\\Plant_Spacing",1,"12 inches",5,null,null,null,"Crop_Practices\\Rotation_Period",20,0,{"$f":"getRiskValue(\"A:A\",H3,J3,L3,\"Single\")","v":20},{"$f":"IF(ISBLANK(sel_Crop_Practices\\Rotation_Period),\"\",sel_Crop_Practices\\Rotation_Period)","v":"Continuous"}]
["Crop_Practices\\Plant_Spacing",2,"10 inches",3,null,null,null,"Weed_Management\\Herbicide_Applications",20,5,20,{"$f":"IF(ISBLANK(sel_Weed_Management\\Herbicide_Applications),\"\",sel_Weed_Management\\Herbicide_Applications)","v":"None"}]
["Crop_Practices\\Rotation_Period",1,"Continuous",20,null,null,null,"Weed_History\\Pennsylvania_Smartweed",15,-5,15,{"$f":"IF(ISBLANK(sel_Weed_History\\Pennsylvania_Smartweed),\"\",sel_Weed_History\\Pennsylvania_Smartweed)","v":"Within last 2 years"}]
["Crop_Practices\\Rotation_Period",2,"1 year",15,null,null,null,"Weed_Management\\Tillage",15,-10,15,{"$f":"IF(ISBLANK(sel_Weed_Management\\Tillage),\"\",sel_Weed_Management\\Tillage)","v":"None"}]
["Crop_Practices\\Rotation_Period",3,"2 years|3 years",5,null,null,null,"Weed_Management\\Hand_Weeding",10,-10,10,{"$f":"IF(ISBLANK(sel_Weed_Management\\Hand_Weeding),\"\",sel_Weed_Management\\Hand_Weeding)","v":"None"}]
["Crop_Practices\\Rotation_Period",4,"4 or more years",0,null,null,null,"Crop_Practices\\Plant_Spacing",5,3,5,{"$f":"IF(ISBLANK(sel_Crop_Practices\\Plant_Spacing),\"\",sel_Crop_Practices\\Plant_Spacing)","v":"12 inches"}]
["Crop_Practices\\Row_Spacing",1,"42 or 44 inches",5,null,null,null,"Crop_Practices\\Row_Spacing",5,3,5,{"$f":"IF(ISBLANK(sel_Crop_Practices\\Row_Spacing),\"\",sel_Crop_Practices\\Row_Spacing)","v":"42 or 44 inches"}]
["Crop_Practices\\Row_Spacing",2,"36 inches",3,null,null,null,"Equipment\\Sanitation",5,-5,5,{"$f":"IF(ISBLANK(sel_Equipment\\Sanitation),\"\",sel_Equipment\\Sanitation)","v":"No"}]
["Equipment\\Sanitation",1,"No",5,null,null,null,"Field_History\\Previous_Crop",0,-5,0,{"$f":"IF(ISBLANK(sel_Field_History\\Previous_Crop),\"\",sel_Field_History\\Previous_Crop)","v":"Other"}]
["Equipment\\Sanitation",2,"Yes",-5]
["Field_History\\Previous_Crop",1,"Other",0,null,null,null,"Total",{"$f":"SUMIF(I3:I11,\">0\")","v":95},{"$f":"SUMIF(J3:J11,\">0\")","v":11},{"$f":"MAX(WABPS_MinRiskIndex,SUM(K3:K11))","v":95}]
["Field_History\\Previous_Crop",2,"Corn|Soybean",-5]
["Weed_History\\Pennsylvania_Smartweed",1,"Within last 2 years",15,null,null,null,"High Risk Index",65]
["Weed_History\\Pennsylvania_Smartweed",2,"Within 2 to 5 years",10,null,null,null,"Moderate Risk Index",21]
["Weed_History\\Pennsylvania_Smartweed",3,"More than 5 years ago",5]
["Weed_History\\Pennsylvania_Smartweed",4,"Never",-5]
["Weed_Management\\Hand_Weeding",1,"None",10]
["Weed_Management\\Hand_Weeding",2,"1 Time",-5]
["Weed_Management\\Hand_Weeding",3,"2+ Times",-10]
["Weed_Management\\Herbicide_Applications",1,"None",20]
["Weed_Management\\Herbicide_Applications",2,"1 recommended",15]
["Weed_Management\\Herbicide_Applications",3,"2 recommended",10]
["Weed_Management\\Herbicide_Applications",4,"3 or more recommended",5]
["Weed_Management\\Tillage",1,"None",15]
["Weed_Management\\Tillage",2,"Wide Cultivation",-5]
["Weed_Management\\Tillage",3,"Narrow Cultivation",-10]

{"sheet":"WABP","index":14,"n_rows":28,"n_cols":12,"rows_kept":28,"cut":false,"hidden":true,"merged":[[0,0,0,3]]}
["Purslane"]
["Category","Risk Level","Risk Level Description","Points",null,null,null,"Category","Max","Min","Risk","Selection"]
["Crop_Practices\\Plant_Spacing",1,"12 inches",5,null,null,null,"Crop_Practices\\Rotation_Period",20,0,{"$f":"getRiskValue(\"A:A\",H3,J3,L3,\"Single\")","v":20},{"$f":"IF(ISBLANK(sel_Crop_Practices\\Rotation_Period),\"\",sel_Crop_Practices\\Rotation_Period)","v":"Continuous"}]
["Crop_Practices\\Plant_Spacing",2,"10 inches",3,null,null,null,"Weed_Management\\Herbicide_Applications",20,5,20,{"$f":"IF(ISBLANK(sel_Weed_Management\\Herbicide_Applications),\"\",sel_Weed_Management\\Herbicide_Applications)","v":"None"}]
["Crop_Practices\\Rotation_Period",1,"Continuous",20,null,null,null,"Weed_History\\Purslane",15,-5,15,{"$f":"IF(ISBLANK(sel_Weed_History\\Purslane),\"\",sel_Weed_History\\Purslane)","v":"Within last 2 years"}]
["Crop_Practices\\Rotation_Period",2,"1 year",15,null,null,null,"Weed_Management\\Tillage",15,-10,15,{"$f":"IF(ISBLANK(sel_Weed_Management\\Tillage),\"\",sel_Weed_Management\\Tillage)","v":"None"}]
["Crop_Practices\\Rotation_Period",3,"2 years|3 years",5,null,null,null,"Weed_Management\\Hand_Weeding",10,-10,10,{"$f":"IF(ISBLANK(sel_Weed_Management\\Hand_Weeding),\"\",sel_Weed_Management\\Hand_Weeding)","v":"None"}]
["Crop_Practices\\Rotation_Period",4,"4 or more years",0,null,null,null,"Crop_Practices\\Plant_Spacing",5,3,5,{"$f":"IF(ISBLANK(sel_Crop_Practices\\Plant_Spacing),\"\",sel_Crop_Practices\\Plant_Spacing)","v":"12 inches"}]
["Crop_Practices\\Row_Spacing",1,"42 or 44 inches",5,null,null,null,"Crop_Practices\\Row_Spacing",5,3,5,{"$f":"IF(ISBLANK(sel_Crop_Practices\\Row_Spacing),\"\",sel_Crop_Practices\\Row_Spacing)","v":"42 or 44 inches"}]
["Crop_Practices\\Row_Spacing",2,"36 inches",3,null,null,null,"Equipment\\Sanitation",5,-5,5,{"$f":"IF(ISBLANK(sel_Equipment\\Sanitation),\"\",sel_Equipment\\Sanitation)","v":"No"}]
["Equipment\\Sanitation",1,"No",5,null,null,null,"Field_History\\Previous_Crop",0,-5,0,{"$f":"IF(ISBLANK(sel_Field_History\\Previous_Crop),\"\",sel_Field_History\\Previous_Crop)","v":"Other"}]
["Equipment\\Sanitation",2,"Yes",-5]
["Field_History\\Previous_Crop",1,"Other",0,null,null,null,"Total",{"$f":"SUMIF(I3:I11,\">0\")","v":95},{"$f":"SUMIF(J3:J11,\">0\")","v":11},{"$f":"MAX(WABP_MinRiskIndex,SUM(K3:K11))","v":95}]
["Field_History\\Previous_Crop",2,"Corn|Soybean",-5]
["Weed_History\\Purslane",1,"Within last 2 years",15,null,null,null,"High Risk Index",65]
["Weed_History\\Purslane",2,"Within 2 to 5 years",10,null,null,null,"Moderate Risk Index",21]
["Weed_History\\Purslane",3,"More than 5 years ago",5]
["Weed_History\\Purslane",4,"Never",-5]
["Weed_Management\\Hand_Weeding",1,"None",10]
["Weed_Management\\Hand_Weeding",2,"1 Time",-5]
["Weed_Management\\Hand_Weeding",3,"2+ Times",-10]
["Weed_Management\\Herbicide_Applications",1,"None",20]
["Weed_Management\\Herbicide_Applications",2,"1 recommended",15]
["Weed_Management\\Herbicide_Applications",3,"2 recommended",10]
["Weed_Management\\Herbicide_Applications",4,"3 or more recommended",5]
["Weed_Management\\Tillage",1,"None",15]
["Weed_Management\\Tillage",2,"Wide Cultivation",-5]
["Weed_Management\\Tillage",3,"Narrow Cultivation",-10]

{"sheet":"WABSP","index":15,"n_rows":28,"n_cols":12,"rows_kept":28,"cut":false,"hidden":true,"merged":[[0,0,0,3]]}
["Smooth Pigweed"]
["Category","Risk Level","Risk Level Description","Points",null,null,null,"Category","Max","Min","Risk","Selection"]
["Crop_Practices\\Plant_Spacing",1,"12 inches",5,null,null,null,"Crop_Practices\\Rotation_Period",20,0,{"$f":"getRiskValue(\"A:A\",H3,J3,L3,\"Single\")","v":20},{"$f":"IF(ISBLANK(sel_Crop_Practices\\Rotation_Period),\"\",sel_Crop_Practices\\Rotation_Period)","v":"Continuous"}]
["Crop_Practices\\Plant_Spacing",2,"10 inches",3,null,null,null,"Weed_Management\\Herbicide_Applications",20,5,20,{"$f":"IF(ISBLANK(sel_Weed_Management\\Herbicide_Applications),\"\",sel_Weed_Management\\Herbicide_Applications)","v":"None"}]
["Crop_Practices\\Rotation_Period",1,"Continuous",20,null,null,null,"Weed_History\\Smooth_Pigweed",15,-5,15,{"$f":"IF(ISBLANK(sel_Weed_History\\Smooth_Pigweed),\"\",sel_Weed_History\\Smooth_Pigweed)","v":"Within last 2 years"}]
["Crop_Practices\\Rotation_Period",2,"1 year",15,null,null,null,"Weed_Management\\Tillage",15,-10,15,{"$f":"IF(ISBLANK(sel_Weed_Management\\Tillage),\"\",sel_Weed_Management\\Tillage)","v":"None"}]
["Crop_Practices\\Rotation_Period",3,"2 years|3 years",5,null,null,null,"Weed_Management\\Hand_Weeding",10,-10,10,{"$f":"IF(ISBLANK(sel_Weed_Management\\Hand_Weeding),\"\",sel_Weed_Management\\Hand_Weeding)","v":"None"}]
["Crop_Practices\\Rotation_Period",4,"4 or more years",0,null,null,null,"Crop_Practices\\Plant_Spacing",5,3,5,{"$f":"IF(ISBLANK(sel_Crop_Practices\\Plant_Spacing),\"\",sel_Crop_Practices\\Plant_Spacing)","v":"12 inches"}]
["Crop_Practices\\Row_Spacing",1,"42 or 44 inches",5,null,null,null,"Crop_Practices\\Row_Spacing",5,3,5,{"$f":"IF(ISBLANK(sel_Crop_Practices\\Row_Spacing),\"\",sel_Crop_Practices\\Row_Spacing)","v":"42 or 44 inches"}]
["Crop_Practices\\Row_Spacing",2,"36 inches",3,null,null,null,"Equipment\\Sanitation",5,-5,5,{"$f":"IF(ISBLANK(sel_Equipment\\Sanitation),\"\",sel_Equipment\\Sanitation)","v":"No"}]
["Equipment\\Sanitation",1,"No",5,null,null,null,"Field_History\\Previous_Crop",0,-5,0,{"$f":"IF(ISBLANK(sel_Field_History\\Previous_Crop),\"\",sel_Field_History\\Previous_Crop)","v":"Other"}]
["Equipment\\Sanitation",2,"Yes",-5]
["Field_History\\Previous_Crop",1,"Other",0,null,null,null,"Total",{"$f":"SUMIF(I3:I11,\">0\")","v":95},{"$f":"SUMIF(J3:J11,\">0\")","v":11},{"$f":"MAX(WABSP_MinRiskIndex,SUM(K3:K11))","v":95}]
["Field_History\\Previous_Crop",2,"Corn|Soybean",-5]
["Weed_History\\Smooth_Pigweed",1,"Within last 2 years",15,null,null,null,"High Risk Index",65]
["Weed_History\\Smooth_Pigweed",2,"Within 2 to 5 years",10,null,null,null,"Moderate Risk Index",26]
["Weed_History\\Smooth_Pigweed",3,"More than 5 years ago",5]
["Weed_History\\Smooth_Pigweed",4,"Never",-5]
["Weed_Management\\Hand_Weeding",1,"None",10]
["Weed_Management\\Hand_Weeding",2,"1 Time",-5]
["Weed_Management\\Hand_Weeding",3,"2+ Times",-10]
["Weed_Management\\Herbicide_Applications",1,"None",20]
["Weed_Management\\Herbicide_Applications",2,"1 recommended",15]
["Weed_Management\\Herbicide_Applications",3,"2 recommended",10]
["Weed_Management\\Herbicide_Applications",4,"3 or more recommended",5]
["Weed_Management\\Tillage",1,"None",15]
["Weed_Management\\Tillage",2,"Wide Cultivation",-5]
["Weed_Management\\Tillage",3,"Narrow Cultivation",-10]

{"sheet":"WPYN","index":16,"n_rows":28,"n_cols":12,"rows_kept":28,"cut":false,"hidden":true,"merged":[[0,0,0,3]]}
["Yellow Nutsedge"]
["Category","Risk Level","Risk Level Description","Points",null,null,null,"Category","Max","Min","Risk","Selection"]
["Crop_Practices\\Plant_Spacing",1,"12 inches",5,null,null,null,"Crop_Practices\\Rotation_Period",20,0,{"$f":"getRiskValue(\"A:A\",H3,J3,L3,\"Single\")","v":20},{"$f":"IF(ISBLANK(sel_Crop_Practices\\Rotation_Period),\"\",sel_Crop_Practices\\Rotation_Period)","v":"Continuous"}]
["Crop_Practices\\Plant_Spacing",2,"10 inches",3,null,null,null,"Weed_History\\Yellow_Nutsedge",20,0,20,{"$f":"IF(ISBLANK(sel_Weed_History\\Yellow_Nutsedge),\"\",sel_Weed_History\\Yellow_Nutsedge)","v":"Within last 2 years"}]
["Crop_Practices\\Rotation_Period",1,"Continuous",20,null,null,null,"Weed_Management\\Herbicide_Applications",20,5,20,{"$f":"IF(ISBLANK(sel_Weed_Management\\Herbicide_Applications),\"\",sel_Weed_Management\\Herbicide_Applications)","v":"None"}]
["Crop_Practices\\Rotation_Period",2,"1 year",15,null,null,null,"Weed_Management\\Tillage",15,-10,15,{"$f":"IF(ISBLANK(sel_Weed_Management\\Tillage),\"\",sel_Weed_Management\\Tillage)","v":"None"}]
["Crop_Practices\\Rotation_Period",3,"2 years|3 years",5,null,null,null,"Crop_Practices\\Plant_Spacing",5,3,5,{"$f":"IF(ISBLANK(sel_Crop_Practices\\Plant_Spacing),\"\",sel_Crop_Practices\\Plant_Spacing)","v":"12 inches"}]
["Crop_Practices\\Rotation_Period",4,"4 or more years",0,null,null,null,"Crop_Practices\\Row_Spacing",5,3,5,{"$f":"IF(ISBLANK(sel_Crop_Practices\\Row_Spacing),\"\",sel_Crop_Practices\\Row_Spacing)","v":"42 or 44 inches"}]
["Crop_Practices\\Row_Spacing",1,"42 or 44 inches",5,null,null,null,"Equipment\\Sanitation",5,-5,5,{"$f":"IF(ISBLANK(sel_Equipment\\Sanitation),\"\",sel_Equipment\\Sanitation)","v":"No"}]
["Crop_Practices\\Row_Spacing",2,"36 inches",3,null,null,null,"Weed_Management\\Hand_Weeding",5,-5,5,{"$f":"IF(ISBLANK(sel_Weed_Management\\Hand_Weeding),\"\",sel_Weed_Management\\Hand_Weeding)","v":"None"}]
["Equipment\\Sanitation",1,"No",5,null,null,null,"Field_History\\Previous_Crop",0,-5,0,{"$f":"IF(ISBLANK(sel_Field_History\\Previous_Crop),\"\",sel_Field_History\\Previous_Crop)","v":"Other"}]
["Equipment\\Sanitation",2,"Yes",-5]
["Field_History\\Previous_Crop",1,"Other",0,null,null,null,"Total",{"$f":"SUMIF(I3:I11,\">0\")","v":95},{"$f":"SUMIF(J3:J11,\">0\")","v":11},{"$f":"MAX(WPYN_MinRiskIndex,SUM(K3:K11))","v":95}]
["Field_History\\Previous_Crop",2,"Corn|Soybean",-5]
["Weed_History\\Yellow_Nutsedge",1,"Within last 2 years",20,null,null,null,"High Risk Index",65]
["Weed_History\\Yellow_Nutsedge",2,"Within 2 to 5 years",15,null,null,null,"Moderate Risk Index",31]
["Weed_History\\Yellow_Nutsedge",3,"More than 5 years ago",10]
["Weed_History\\Yellow_Nutsedge",4,"Never",0]
["Weed_Management\\Hand_Weeding",1,"None",5]
["Weed_Management\\Hand_Weeding",2,"1 Time",0]
["Weed_Management\\Hand_Weeding",3,"2+ Times",-5]
["Weed_Management\\Herbicide_Applications",1,"None",20]
["Weed_Management\\Herbicide_Applications",2,"1 recommended",15]
["Weed_Management\\Herbicide_Applications",3,"2 recommended",10]
["Weed_Management\\Herbicide_Applications",4,"3 or more recommended",5]
["Weed_Management\\Tillage",1,"None",15]
["Weed_Management\\Tillage",2,"Wide Cultivation",-5]
["Weed_Management\\Tillage",3,"Narrow Cultivation",-10]

{"sheet":"DBR","index":17,"n_rows":22,"n_cols":12,"rows_kept":22,"cut":false,"hidden":true,"merged":[[0,0,0,3]]}
["Black Rot"]
["Category","Risk Level","Risk Level Description","Points",null,null,null,"Category","Max","Min","Risk","Selection"]
["Crop_Practices\\Rotation_Period",1,"Continuous",10,null,null,null,"Crop_Practices\\Transplants",20,-5,{"$f":"getRiskValue(\"A:A\",H3,J3,L3,\"Single\")","v":20},{"$f":"IF(ISBLANK(sel_Crop_Practices\\Transplants),\"\",sel_Crop_Practices\\Transplants)","v":"Not clean with soil"}]
["Crop_Practices\\Rotation_Period",2,"1 year|2 years",5,null,null,null,"Pest_History\\Black_Rot",15,0,15,{"$f":"IF(ISBLANK(sel_Pest_History\\Black_Rot),\"\",sel_Pest_History\\Black_Rot)","v":"Within last 2 years"}]
["Crop_Practices\\Rotation_Period",3,"3 years|4 or more years",0,null,null,null,"Pest_Management_Chemicals\\Fungicides",15,5,15,{"$f":"IF(ISBLANK(sel_Pest_Management_Chemicals\\Fungicides),\"\",sel_Pest_Management_Chemicals\\Fungicides)","v":"None"}]
["Crop_Practices\\Transplants",1,"Not clean with soil",20,null,null,null,"Crop_Practices\\Rotation_Period",10,0,10,{"$f":"IF(ISBLANK(sel_Crop_Practices\\Rotation_Period),\"\",sel_Crop_Practices\\Rotation_Period)","v":"Continuous"}]
["Crop_Practices\\Transplants",2,"Clean and soilless",-5,null,null,null,"Harvest\\Curing_and_Storage",10,-5,10,{"$f":"IF(ISBLANK(sel_Harvest\\Curing_and_Storage),\"\",sel_Harvest\\Curing_and_Storage)","v":"Delayed"}]
["Equipment\\Sanitation",1,"No",5,null,null,null,"Harvest\\Moisture",10,-5,10,{"$f":"IF(ISBLANK(sel_Harvest\\Moisture),\"\",sel_Harvest\\Moisture)","v":"Wet"}]
["Equipment\\Sanitation",2,"Yes",-5,null,null,null,"Equipment\\Sanitation",5,-5,5,{"$f":"IF(ISBLANK(sel_Equipment\\Sanitation),\"\",sel_Equipment\\Sanitation)","v":"No"}]
["Harvest\\Curing_and_Storage",1,"Delayed",10,null,null,null,"Harvest\\Mechanical_Damage",5,0,5,{"$f":"IF(ISBLANK(sel_Harvest\\Mechanical_Damage),\"\",sel_Harvest\\Mechanical_Damage)","v":"Often"}]
["Harvest\\Curing_and_Storage",2,"Prompt",-5]
["Harvest\\Mechanical_Damage",1,"Often",5,null,null,null,"Total",{"$f":"SUMIF(I3:I10,\">0\")","v":90},{"$f":"SUMIF(J3:J10,\">0\")","v":5},{"$f":"MAX(DBR_MinRiskIndex,SUM(K3:K10))","v":90}]
["Harvest\\Mechanical_Damage",2,"Limited",0]
["Harvest\\Moisture",1,"Wet",10,null,null,null,"High Risk Index",35]
["Harvest\\Moisture",2,"Dry",-5,null,null,null,"Moderate Risk Index",10]
["Pest_History\\Black_Rot",1,"Within last 2 years",15]
["Pest_History\\Black_Rot",2,"Within 2 to 5 years",10]
["Pest_History\\Black_Rot",3,"More than 5 years",5]
["Pest_History\\Black_Rot",4,"Never",0]
["Pest_Management_Chemicals\\Fungicides",1,"None",15]
["Pest_Management_Chemicals\\Fungicides",2,"1 recommended",10]
["Pest_Management_Chemicals\\Fungicides",3,"2+ recommended",5]

{"sheet":"PSRFR","index":18,"n_rows":16,"n_cols":12,"rows_kept":16,"cut":false,"hidden":true,"merged":[[0,0,0,3]]}
["Fusarium Rot"]
["Category","Risk Level","Risk Level Description","Points",null,null,null,"Category","Max","Min","Risk","Selection"]
["Crop_Practices\\Rotation_Period",1,"Continuous",10,null,null,null,"Crop_Practices\\Transplants",15,-5,{"$f":"getRiskValue(\"A:A\",H3,J3,L3,\"Single\")","v":15},{"$f":"IF(ISBLANK(sel_Crop_Practices\\Transplants),\"\",sel_Crop_Practices\\Transplants)","v":"Not clean with soil"}]
["Crop_Practices\\Rotation_Period",2,"1 year|2 years",5,null,null,null,"Pest_Management_Chemicals\\Fungicides",15,5,15,{"$f":"IF(ISBLANK(sel_Pest_Management_Chemicals\\Fungicides),\"\",sel_Pest_Management_Chemicals\\Fungicides)","v":"None"}]
["Crop_Practices\\Rotation_Period",3,"3 years|4 or more years",0,null,null,null,"Crop_Practices\\Rotation_Period",10,0,10,{"$f":"IF(ISBLANK(sel_Crop_Practices\\Rotation_Period),\"\",sel_Crop_Practices\\Rotation_Period)","v":"Continuous"}]
["Crop_Practices\\Transplants",1,"Not clean with soil",15,null,null,null,"Cultivar\\Fusarium_Rot_Resistance",5,0,5,{"$f":"IF(ISBLANK(sel_Cultivar\\Fusarium_Rot_Resistance),\"\",sel_Cultivar\\Fusarium_Rot_Resistance)","v":"No"}]
["Crop_Practices\\Transplants",2,"Clean and soilless",-5,null,null,null,"Harvest\\Curing_and_Storage",5,0,5,{"$f":"IF(ISBLANK(sel_Harvest\\Curing_and_Storage),\"\",sel_Harvest\\Curing_and_Storage)","v":"Delayed"}]
["Cultivar\\Fusarium_Rot_Resistance",1,"No",5,null,null,null,"Harvest\\Mechanical_Damage",5,0,5,{"$f":"IF(ISBLANK(sel_Harvest\\Mechanical_Damage),\"\",sel_Harvest\\Mechanical_Damage)","v":"Often"}]
["Cultivar\\Fusarium_Rot_Resistance",2,"Yes",0]
["Harvest\\Curing_and_Storage",1,"Delayed",5,null,null,null,"Total",{"$f":"SUMIF(I3:I8,\">0\")","v":55},{"$f":"SUMIF(J3:J8,\">0\")","v":5},{"$f":"MAX(PSRFR_MinRiskIndex,SUM(K3:K8))","v":55}]
["Harvest\\Curing_and_Storage",2,"Prompt",0]
["Harvest\\Mechanical_Damage",1,"Often",5,null,null,null,"High Risk Index",25]
["Harvest\\Mechanical_Damage",2,"Limited",0,null,null,null,"Moderate Risk Index",10]
["Pest_Management_Chemicals\\Fungicides",1,"None",15]
["Pest_Management_Chemicals\\Fungicides",2,"1 recommended",10]
["Pest_Management_Chemicals\\Fungicides",3,"2+ recommended",5]

{"sheet":"PSRRSR","index":19,"n_rows":15,"n_cols":12,"rows_kept":15,"cut":false,"hidden":true,"merged":[[0,0,0,3]]}
["Rhizopus Soft Rot"]
["Category","Risk Level","Risk Level Description","Points",null,null,null,"Category","Max","Min","Risk","Selection"]
["Cultivar\\Rhizopus_Soft_Rot_Resistance",1,"No",5,null,null,null,"Pest_Management_Chemicals\\Fungicides",15,5,{"$f":"getRiskValue(\"A:A\",H3,J3,L3,\"Single\")","v":15},{"$f":"IF(ISBLANK(sel_Pest_Management_Chemicals\\Fungicides),\"\",sel_Pest_Management_Chemicals\\Fungicides)","v":"None"}]
["Cultivar\\Rhizopus_Soft_Rot_Resistance",2,"Yes",0,null,null,null,"Harvest\\Curing_and_Storage",10,-5,10,{"$f":"IF(ISBLANK(sel_Harvest\\Curing_and_Storage),\"\",sel_Harvest\\Curing_and_Storage)","v":"Delayed"}]
["Equipment\\Sanitation",1,"No",5,null,null,null,"Harvest\\Mechanical_Damage",10,-5,10,{"$f":"IF(ISBLANK(sel_Harvest\\Mechanical_Damage),\"\",sel_Harvest\\Mechanical_Damage)","v":"Often"}]
["Equipment\\Sanitation",2,"Yes",-5,null,null,null,"Cultivar\\Rhizopus_Soft_Rot_Resistance",5,0,5,{"$f":"IF(ISBLANK(sel_Cultivar\\Rhizopus_Soft_Rot_Resistance),\"\",sel_Cultivar\\Rhizopus_Soft_Rot_Resistance)","v":"No"}]
["Harvest\\Curing_and_Storage",1,"Delayed",10,null,null,null,"Equipment\\Sanitation",5,-5,5,{"$f":"IF(ISBLANK(sel_Equipment\\Sanitation),\"\",sel_Equipment\\Sanitation)","v":"No"}]
["Harvest\\Curing_and_Storage",2,"Prompt",-5,null,null,null,"Harvest\\Moisture",5,-5,5,{"$f":"IF(ISBLANK(sel_Harvest\\Moisture),\"\",sel_Harvest\\Moisture)","v":"Wet"}]
["Harvest\\Mechanical_Damage",1,"Often",10]
["Harvest\\Mechanical_Damage",2,"Limited",-5,null,null,null,"Total",{"$f":"SUMIF(I3:I8,\">0\")","v":50},{"$f":"SUMIF(J3:J8,\">0\")","v":5},{"$f":"MAX(PSRRSR_MinRiskIndex,SUM(K3:K8))","v":50}]
["Harvest\\Moisture",1,"Wet",5]
["Harvest\\Moisture",2,"Dry",-5,null,null,null,"High Risk Index",25]
["Pest_Management_Chemicals\\Fungicides",1,"None",15,null,null,null,"Moderate Risk Index",10]
["Pest_Management_Chemicals\\Fungicides",2,"1 recommended",10]
["Pest_Management_Chemicals\\Fungicides",3,"2+ recommended",5]

{"sheet":"PSRS","index":20,"n_rows":9,"n_cols":12,"rows_kept":9,"cut":false,"hidden":true,"merged":[[0,0,0,3]]}
["Scurf"]
["Category","Risk Level","Risk Level Description","Points",null,null,null,"Category","Max","Min","Risk","Selection"]
["Crop_Practices\\Transplants",1,"Not clean with soil",20,null,null,null,"Crop_Practices\\Transplants",20,-5,{"$f":"getRiskValue(\"A:A\",H3,J3,L3,\"Single\")","v":20},{"$f":"IF(ISBLANK(sel_Crop_Practices\\Transplants),\"\",sel_Crop_Practices\\Transplants)","v":"Not clean with soil"}]
["Crop_Practices\\Transplants",2,"Clean and soilless",-5,null,null,null,"Pest_Management_Chemicals\\Fungicides",15,5,{"$f":"getRiskValue(\"A:A\",H4,J4,L4,\"Single\")","v":15},{"$f":"IF(ISBLANK(sel_Pest_Management_Chemicals\\Fungicides),\"\",sel_Pest_Management_Chemicals\\Fungicides)","v":"None"}]
["Pest_Management_Chemicals\\Fungicides",1,"None",15]
["Pest_Management_Chemicals\\Fungicides",2,"1 recommended",10,null,null,null,"Total",{"$f":"SUMIF(I3:I4,\">0\")","v":35},{"$f":"SUMIF(J3:J4,\">0\")","v":5},{"$f":"MAX(PSRS_MinRiskIndex,SUM(K3:K4))","v":35}]
["Pest_Management_Chemicals\\Fungicides",3,"2+ recommended",5]
[null,null,null,null,null,null,null,"High Risk Index",20]
[null,null,null,null,null,null,null,"Moderate Risk Index",10]

{"sheet":"SPN","index":21,"n_rows":18,"n_cols":12,"rows_kept":18,"cut":false,"hidden":true,"merged":[[0,0,0,3]]}
["Nematodes"]
["Category","Risk Level","Risk Level Description","Points",null,null,null,"Category","Max","Min","Risk","Selection"]
["Crop_Practices\\Certified_Slips",1,"No",15,null,null,null,"Crop_Practices\\Certified_Slips",15,-5,{"$f":"getRiskValue(\"A:A\",H3,J3,L3,\"Single\")","v":15},{"$f":"IF(ISBLANK(sel_Crop_Practices\\Certified_Slips),\"\",sel_Crop_Practices\\Certified_Slips)","v":"No"}]
["Crop_Practices\\Certified_Slips",2,"Yes",-5,null,null,null,"Pest_Management_Chemicals\\Nematicides",15,5,15,{"$f":"IF(ISBLANK(sel_Pest_Management_Chemicals\\Nematicides),\"\",sel_Pest_Management_Chemicals\\Nematicides)","v":"None"}]
["Crop_Practices\\Rotation_Period",1,"Continuous",10,null,null,null,"Crop_Practices\\Rotation_Period",10,0,10,{"$f":"IF(ISBLANK(sel_Crop_Practices\\Rotation_Period),\"\",sel_Crop_Practices\\Rotation_Period)","v":"Continuous"}]
["Crop_Practices\\Rotation_Period",2,"1 year|2 years",5,null,null,null,"Equipment\\Sanitation",10,-5,10,{"$f":"IF(ISBLANK(sel_Equipment\\Sanitation),\"\",sel_Equipment\\Sanitation)","v":"No"}]
["Crop_Practices\\Rotation_Period",3,"3 years|4 or more years",0,null,null,null,"Pest_History\\Nematodes",10,-5,10,{"$f":"IF(ISBLANK(sel_Pest_History\\Nematodes),\"\",sel_Pest_History\\Nematodes)","v":"Within last 2 years"}]
["Cultivar\\Nematode_Resistance",1,"No",5,null,null,null,"Cultivar\\Nematode_Resistance",5,0,5,{"$f":"IF(ISBLANK(sel_Cultivar\\Nematode_Resistance),\"\",sel_Cultivar\\Nematode_Resistance)","v":"No"}]
["Cultivar\\Nematode_Resistance",2,"Yes",0]
["Equipment\\Sanitation",1,"No",10,null,null,null,"Total",{"$f":"SUMIF(I3:I8,\">0\")","v":65},{"$f":"SUMIF(J3:J8,\">0\")","v":5},{"$f":"MAX(SPN_MinRiskIndex,SUM(K3:K8))","v":65}]
["Equipment\\Sanitation",2,"Yes",-5]
["Pest_History\\Nematodes",1,"Within last 2 years",10,null,null,null,"High Risk Index",25]
["Pest_History\\Nematodes",2,"Within 2 to 5 years",5,null,null,null,"Moderate Risk Index",10]
["Pest_History\\Nematodes",3,"More than 5 years",0]
["Pest_History\\Nematodes",4,"Never",-5]
["Pest_Management_Chemicals\\Nematicides",1,"None",15]
["Pest_Management_Chemicals\\Nematicides",2,"1 recommended",10]
["Pest_Management_Chemicals\\Nematicides",3,"2+ recommended",5]

{"sheet":"ISW","index":22,"n_rows":18,"n_cols":12,"rows_kept":18,"cut":false,"hidden":true,"merged":[[0,0,0,3]]}
["Sweetpotato Weevil"]
["Category","Risk Level","Risk Level Description","Points",null,null,null,"Category","Max","Min","Risk","Selection"]
["Crop_Practices\\Certified_Slips",1,"No",15,null,null,null,"Crop_Practices\\Certified_Slips",15,-10,{"$f":"getRiskValue(\"A:A\",H3,J3,L3,\"Single\")","v":15},{"$f":"IF(ISBLANK(sel_Crop_Practices\\Certified_Slips),\"\",sel_Crop_Practices\\Certified_Slips)","v":"No"}]
["Crop_Practices\\Certified_Slips",2,"Yes",-10,null,null,null,"Crop_Practices\\Rotation_Period",15,0,{"$f":"getRiskValue(\"A:A\",H4,J4,L4,\"Single\")","v":15},{"$f":"IF(ISBLANK(sel_Crop_Practices\\Rotation_Period),\"\",sel_Crop_Practices\\Rotation_Period)","v":"Continuous"}]
["Crop_Practices\\Rotation_Period",1,"Continuous",15,null,null,null,"Pest_History\\Sweetpotato_Weevil",15,0,{"$f":"getRiskValue(\"A:A\",H5,J5,L5,\"Single\")","v":15},{"$f":"IF(ISBLANK(sel_Pest_History\\Sweetpotato_Weevil),\"\",sel_Pest_History\\Sweetpotato_Weevil)","v":"Within last 2 years"}]
["Crop_Practices\\Rotation_Period",2,"1 year",10,null,null,null,"Pest_Management_Chemicals\\Insecticides",10,-10,{"$f":"getRiskValue(\"A:A\",H6,J6,L6,\"Single\")","v":10},{"$f":"IF(ISBLANK(sel_Pest_Management_Chemicals\\Insecticides),\"\",sel_Pest_Management_Chemicals\\Insecticides)","v":"None"}]
["Crop_Practices\\Rotation_Period",3,"2 years|3 years",5,null,null,null,"Pest_Management_Traps\\Sweetpotato_Weevil",10,-5,{"$f":"getRiskValue(\"A:A\",H7,J7,L7,\"Single\")","v":10},{"$f":"IF(ISBLANK(sel_Pest_Management_Traps\\Sweetpotato_Weevil),\"\",sel_Pest_Management_Traps\\Sweetpotato_Weevil)","v":"No"}]
["Crop_Practices\\Rotation_Period",4,"4 or more years",0]
["Pest_History\\Sweetpotato_Weevil",1,"Within last 2 years",15,null,null,null,"Total",{"$f":"SUMIF(I3:I7,\">0\")","v":65},{"$f":"SUMIF(J3:J7,\">0\")","v":0},{"$f":"MAX(ISW_MinRiskIndex,SUM(K3:K7))","v":65}]
["Pest_History\\Sweetpotato_Weevil",2,"Within 2 to 5 years",10]
["Pest_History\\Sweetpotato_Weevil",3,"More than 5 years ago",5,null,null,null,"High Risk Index",30]
["Pest_History\\Sweetpotato_Weevil",4,"Never",0,null,null,null,"Moderate Risk Index",10]
["Pest_Management_Chemicals\\Insecticides",1,"None",10]
["Pest_Management_Chemicals\\Insecticides",2,"1 recommended",5]
["Pest_Management_Chemicals\\Insecticides",3,"2 recommended",-5]
["Pest_Management_Chemicals\\Insecticides",4,"3+ recommended",-10]
["Pest_Management_Traps\\Sweetpotato_Weevil",1,"No",10]
["Pest_Management_Traps\\Sweetpotato_Weevil",2,"Yes",-5]

{"sheet":"IW","index":23,"n_rows":16,"n_cols":12,"rows_kept":16,"cut":false,"hidden":true,"merged":[[0,0,0,3]]}
["Wireworm"]
["Category","Risk Level","Risk Level Description","Points",null,null,null,"Category","Max","Min","Risk","Selection"]
["Crop_Practices\\Certified_Slips",1,"No",10,null,null,null,"Crop_Practices\\Rotation_Period",15,0,{"$f":"getRiskValue(\"A:A\",H3,J3,L3,\"Single\")","v":15},{"$f":"IF(ISBLANK(sel_Crop_Practices\\Rotation_Period),\"\",sel_Crop_Practices\\Rotation_Period)","v":"Continuous"}]
["Crop_Practices\\Certified_Slips",2,"Yes",-5,null,null,null,"Pest_History\\Wireworm",15,0,{"$f":"getRiskValue(\"A:A\",H4,J4,L4,\"Single\")","v":15},{"$f":"IF(ISBLANK(sel_Pest_History\\Wireworm),\"\",sel_Pest_History\\Wireworm)","v":"Within last 2 years"}]
["Crop_Practices\\Rotation_Period",1,"Continuous",15,null,null,null,"Crop_Practices\\Certified_Slips",10,-5,{"$f":"getRiskValue(\"A:A\",H5,J5,L5,\"Single\")","v":10},{"$f":"IF(ISBLANK(sel_Crop_Practices\\Certified_Slips),\"\",sel_Crop_Practices\\Certified_Slips)","v":"No"}]
["Crop_Practices\\Rotation_Period",2,"1 year",10,null,null,null,"Pest_Management_Chemicals\\Insecticides",10,-10,{"$f":"getRiskValue(\"A:A\",H6,J6,L6,\"Single\")","v":10},{"$f":"IF(ISBLANK(sel_Pest_Management_Chemicals\\Insecticides),\"\",sel_Pest_Management_Chemicals\\Insecticides)","v":"None"}]
["Crop_Practices\\Rotation_Period",3,"2 years|3 years",5]
["Crop_Practices\\Rotation_Period",4,"4 or more years",0,null,null,null,"Total",{"$f":"SUMIF(I3:I6,\">0\")","v":50},{"$f":"SUMIF(J3:J6,\">0\")","v":0},{"$f":"MAX(IW_MinRiskIndex,SUM(K3:K6))","v":50}]
["Pest_History\\Wireworm",1,"Within last 2 years",15]
["Pest_History\\Wireworm",2,"Within 2 to 3 yeares",10,null,null,null,"High Risk Index",25]
["Pest_History\\Wireworm",3,"More than 5 years ago",5,null,null,null,"Moderate Risk Index",10]
["Pest_History\\Wireworm",4,"Never",0]
["Pest_Management_Chemicals\\Insecticides",1,"None",10]
["Pest_Management_Chemicals\\Insecticides",2,"1 recommended",5]
["Pest_Management_Chemicals\\Insecticides",3,"2 recommended",-5]
["Pest_Management_Chemicals\\Insecticides",4,"3+ recommended",-10]